Workbook

Sheet 1. Info and Instructions
AB1: Alectra Utilities Corporation-Brampton Rate Zone
AB2: Alectra Utilities Corporation-Enersource Rate Zone
AB3: Alectra Utilities Corporation-Horizon Utilities Rate Zone
AB4: Alectra Utilities Corporation-PowerStream Rate Zone
AB5: Alectra Utilities Corporation-Guelph Rate Zone
AB6: Algoma Power Inc.
AB7: Atikokan Hydro Inc.
AB8: Bluewater Power Distribution Corporation
AB9: Brantford Power Inc.
AB10: Burlington Hydro Inc.
AB11: Canadian Niagara Power Inc.
F12: Version | G12: 1 | AB12: Centre Wellington Hydro Ltd.
AB13: Chapleau Public Utilities Corporation
C14: Utility Name | D14: Toronto Hydro-Electric System Limited | AB14: Cooperative Hydro Embrun Inc.
AB15: E.L.K. Energy Inc.
C16: Assigned EB Number | D16: EB-2023-0195 | AB16: Elexicon Energy Inc.-Whitby Rate Zone
AB17: Elexicon Energy Inc.-Veridian Rate Zone
C18: Name and Title | AB18: Energy+ Inc.
AB19: Entegrus Powerlines Inc.-For Entegrus-Main Rate Zone
C20: Phone Number | AB20: Entegrus Powerlines Inc.-For Former St. Thomas Energy Rate Zone
AB21: ENWIN Utilities Ltd.
C22: Email Address | AB22: EPCOR Electricity Distribution Ontario Inc.
AB23: ERTH Power Corporation - ERTH Power Main Rate Zone
C24: Date | D24: 2023-12-19 | AB24: ERTH POWER CORPORATION – GODERICH RATE ZONE
AB25: Essex Powerlines Corporation
C26: Last COS Re-based Year | D26: 2020 | AB26: Festival Hydro Inc.
AB27: Fort Frances Power Corporation
AB28: Greater Sudbury Hydro Inc.
A29: Note: Drop-down lists are shaded blue; Input cells are shaded green. | AB29: Grimsby Power Incorporated
AB30: Halton Hills Hydro Inc.
AB31: Hearst Power Distribution Co. Ltd.
AB32: Hydro 2000 Inc.
AB33: Hydro Hawkesbury Inc.
AB34: Hydro One Networks Inc.
AB35: Hydro One Networks Inc.-Former Haldimand County Hydro Inc. Service Area
AB36: Hydro One Networks Inc.-Former Norfolk Power Distribution Inc. Service Area
AB37: Hydro One Networks Inc.-Former Woodstock Hydro Services Inc. Service Area
AB38: Hydro One Remote Communites Inc.
AB39: Hydro Ottawa Limited
AB40: InnPower Corporation
AB41: Kingston Hydro Corporation
AB42: Kitchener-Wilmot Hydro Inc.
AB43: Lakefront Utilities Inc.
AB44: Lakeland Power Distribution Ltd.
AB45: Lakeland Power Distribution Ltd.-Parry Sound Service Area
AB46: London Hydro Inc.
AB47: Milton Hydro Distribution Inc.
AB48: Newmarket-Tay Power Distribution Ltd.-For Former Midland Power Utility Rate Zone
AB49: Newmarket-Tay Power Distribution Ltd.-For Newmarket-Tay Power Main Rate Zone
AB50: Niagara Peninsula Energy Inc.
AB51: Niagara-on-the-Lake Hydro Inc.
AB52: North Bay Hydro Distribution Limited - Espanola service territory
AB53: North Bay Hydro Distribution Limited - North Bay service territory
AB54: Northern Ontario Wires Inc.
AB55: Oakville Hydro Electricity Distribution Inc.
AB56: Orangeville Hydro Limited
AB57: Orillia Power Distribution Corporation
AB58: Oshawa PUC Networks Inc.
AB59: Ottawa River Power Corporation
AB60: Peterborough Distribution Incorporated
AB61: PUC Distribution Inc.
AB62: Renfrew Hydro Inc.
AB63: Rideau St. Lawrence Distribution Inc.
AB64: Sioux Lookout Hydro Inc.
AB65: Synergy North Corporation-Kenora Rate Zone
AB66: Synergy North Corporation-Thunder Bay Rate Zone
AB67: Tillsonburg Hydro Inc.
AB68: Toronto Hydro-Electric System Limited
AB69: Wasaga Distribution Inc.
AB70: Waterloo North Hydro Inc.
AB71: Welland Hydro-Electric System Corp.
AB72: Wellington North Power Inc.
AB73: Westario Power Inc.

Sheet Table of Contents
AA1: 1
AA2: 2012
AA3: 2013
AA4: 2014
AA5: 2015
AA6: 2016
D10: 1. Info
D11: S. Summary
D12: A. Data Input Sheet
D13: B. Tax Rates & Exemptions
C16: Historical Year | D16: H0 - PILs, Tax Provision Historical Year
D17: H1 - Adj. Taxable Income Historical Year
D18: H4 - Schedule 4 Loss Carry Forward Historical Year
D19: H8 - Schedule 8 Historical
D20: H13 - Schedule 13 Tax Reserves Historical
C22: Bridge Year | D22: B0 - PILs,Tax Provision Bridge Year
D23: B1 - Adj. Taxable Income Bridge Year
D24: B4 - Schedule 4 Loss Carry Forward Bridge Year
D25: B8 - Schedule 8 CCA Bridge Year
D26: B13 - Schedule 13 Tax Reserves Bridge Year
C28: Test Year | D28: T0 PILs, Tax Provision Test Year
D29: T1 Taxable Income Test Year
D30: T4 Schedule 4 Loss Carry Forward Test Year
D31: T8 Schedule 8 CCA Test Year
D32: T13 Schedule 13 Reserve Test Year

Sheet S. Summary
B5: No inputs required on this worksheet.
D7: Inputs on Service Revenue Requirement Worksheet
D8: The Service Revenue Requirement is in the 'Revenue Requirement Workform' - Tab 3.
D10: Item | G10: Working Paper Reference
D12: Adjustments required to arrive at taxable income | G12: as below | H12: =+H26 -> -143687602
D13: Test Year - Payments in Lieu of Taxes (PILs) | G13: T0 | H13: =+'T0 PILs,Tax Provision Test'!J25 -> 18036409.2
D14: Test Year - Grossed-up PILs before tax credits reclass to OM&A | G14: T0 | H14: =+'T0 PILs,Tax Provision Test'!J30 -> 24539332.25
D15: Test Year - Tax credits reclass to OM&A | G15: T0 | H15: =+'T0 PILs,Tax Provision Test'!J31 -> 2457000
D16: Test Year - Tax credits reclass to OM&A - gross up | G16: T0 | H16: =+'T0 PILs,Tax Provision Test'!J32 -> 885857.1429
D17: Test Year - Grossed-up PILs after tax credits reclass to OM&A | G17: T0 | H17: =+'T0 PILs,Tax Provision Test'!J33 -> 27882189.39
D18: Effective Federal Tax Rate | G18: T0 | H18: =+'T0 PILs,Tax Provision Test'!G14 -> 0.15
D19: Effective Ontario Tax Rate | G19: T0 | H19: =+'T0 PILs,Tax Provision Test'!G13 -> 0.115
D23: Calculation of Adjustments required to arrive at Taxable Income
D24: Regulatory Income (before income taxes) | G24: T1 | H24: ='T1 Sch 1 Taxable Income Test'!F12 -> 220941976.4
D25: Taxable Income | G25: T1 | H25: ='T1 Sch 1 Taxable Income Test'!F122 -> 77254374.36
D26: Difference | G26: calculated | H26: =+H25-H24 -> -143687602 | I26: as above

Sheet S1. Integrity Checks
A11: Integrity Checks
A13: The applicant must ensure the following integrity checks have been completed and confirm this is the case in the table below, or provide an explanation if this is not the case:
B15: Item | C15: Utility Confirmation (Y/N) | D15: Notes
A16: 1 | B16: The depreciation and amortization added back in the application’s PILs model agree with the numbers disclosed in the rate base section of the application | C16: Y
A17: 2 | B17: The capital additions and deductions in the CCA Schedule 8 agree with the rate base section for historical, bridge and test years | C17: Y
A18: 3 | B18: Schedule 8 of the most recent federal T2 tax return filed with the application has a closing December 31 historical year UCC that agrees with the opening (January 1) bridge year UCC. If the amounts do not agree, then the applicant must provide a reconciliation with explanations. Distributors must segregate non-distribution tax amounts on Schedule 8. | C18: Y
A19: 4 | B19: The CCA deductions in the application’s PILs tax model for historical, bridge and test years (as applicable) agree with the numbers in the CCA Schedule 8 for the same years filed in the application | C19: Y
A20: 5 | B20: Loss carry-forwards, if any, from prior year tax returns' Schedule 4 agree with those disclosed in the application | C20: N | D20: Toronto Hydro does not have any non-capital or capital loss carry-forwards as of the end of December 2022, and does not expect to have such loss carry-forwards as of the end of December 2029 (Exhibit 6, Tab 2, Schedule 1).
A21: 6 | B21: A discussion is included in the application as to when the loss carry-forwards, if any, will be fully utilized | C21: N | D21: Toronto Hydro does not have any non-capital or capital loss carry-forwards as of the end of December 2022, and does not expect to have such loss carry-forwards as of the end of December 2029 (Exhibit 6, Tab 2, Schedule 1).
A22: 7 | B22: CCA is maximized even if there are tax loss carry-forwards | C22: N | D22: Toronto Hydro does not have any non-capital or capital loss carry-forwards as of the end of December 2022, and does not expect to have such loss carry-forwards as of the end of December 2029 (Exhibit 6, Tab 2, Schedule 1).
A23: 8 | B23: Other post-employment benefits and pension expenses that are added back on Schedule 1 to reconcile accounting income to net income for tax purposes agree with the OM&A analysis for compensation. The amounts deducted are reasonable when compared with the notes to the audited financial statements, Financial Services Commission of Ontario reports, and actuarial valuations. | C23: Y
A24: 9 | B24: The income tax rate used to calculate the tax expense is consistent with the utility’s actual tax facts and evidence filed in the application | C24: Y

Sheet A. Data Input Sheet
G7: Test Year | H7: Bridge Year
C9: Rate Base | F9: S | G9: 5901228002 | H9: =5596523662-17699007 -> 5578824655 | I9: /C
C11: Return on Ratebase
C12: Deemed ShortTerm Debt % | E12: 0.04 | F12: T | G12: =G9*E12 -> 236049120.1 | H12: W = S * T
C13: Deemed Long Term Debt % | E13: 0.56 | F13: U | G13: =G9*E13 -> 3304687681 | H13: X = S * U
C14: Deemed Equity % | E14: 0.4 | F14: V | G14: =G9*E14 -> 2360491201 | H14: Y = S * V
C16: Short Term Interest Rate | E16: 0.0525 | F16: Z | G16: =+G12*E16 -> 12392578.8 | H16: AC = W * Z
C17: Long Term Interest | E17: 0.03954799343 | F17: AA | G17: =+G13*E17 -> 130693766.7 | H17: AD = X * AA
C18: Return on Equity (Regulatory Income) | E18: 0.0936 | F18: AB | G18: =G14*E18 -> 220941976.4 | H18: AE = Y * AB | I18: T1
C19: Return on Rate Base | G19: =SUM(G16:G18) -> 364028321.9 | H19: AF = AC + AD + AE
C24: Questions that must be answered | G24: Historical Year | H24: Bridge Year | I24: Test Year
C26: 1. Does the applicant have any Investment Tax Credits (ITC)? | G26: Yes | H26: Yes | I26: Yes
C28: 2. Does the applicant have any SRED Expenditures? | G28: Yes | H28: Yes | I28: Yes
C30: 3. Does the applicant have any Capital Gains or Losses for tax purposes? | G30: No | H30: No | I30: No
C32: 4. Does the applicant have any Capital Leases? | G32: Yes | H32: Yes | I32: Yes
C34: 5. Does the applicant have any Loss Carry-Forwards (non-capital or net capital)? | G34: No | H34: No | I34: No
C36: 6. Since 1999, has the applicant acquired another regulated applicant's assets? | G36: No | H36: No | I36: No
C38: 7. Did the applicant pay dividends? | G38: No | H38: No | I38: No
C39: If Yes, please describe the tax treatment in the manager's summary.
C41: 8. Did the applicant elect to capitalize interest incurred on CWIP for tax purposes? | G41: No | H41: No | I41: No

Sheet B. Tax Rates & Exemptions
C9: Tax Rates
C10: Federal & Provincial | E10: Effective | F10: Effective | G10: Effective | H10: Effective | I10: Effective | J10: Effective | K10: Effective
C11: As of May 31, 2023 | E11: 2019-01-01 | F11: =DATE(YEAR(E11) + 1, MONTH(E11), DAY(E11)) -> 2020-01-01 | G11: =DATE(YEAR(F11) + 1, MONTH(F11), DAY(F11)) -> 2021-01-01 | H11: 2022-01-01 | I11: 2023-01-01 | J11: 2024-01-01 | K11: 2025-01-01
C13: Federal income tax
C14: General Corporate Rate | E14: 0.38 | F14: 0.38 | G14: 0.38 | H14: 0.38 | I14: 0.38 | J14: 0.38 | K14: 0.38
C15: Federal Tax Abatement | E15: -0.1 | F15: -0.1 | G15: -0.1 | H15: -0.1 | I15: -0.1 | J15: -0.1 | K15: -0.1
C16: Adjusted Federal Rate | E16: =SUM(E14:E15) -> 0.28 | F16: 0.28 | G16: 0.28 | H16: 0.28 | I16: 0.28 | J16: =SUM(J14:J15) -> 0.28 | K16: 0.28
C18: Rate Reduction | E18: -0.13 | F18: -0.13 | G18: -0.13 | H18: -0.13 | I18: -0.13 | J18: -0.13 | K18: -0.13
C19: Federal Income Tax | E19: =E16+E18 -> 0.15 | F19: 0.15 | G19: 0.15 | H19: 0.15 | I19: 0.15 | J19: =J16+J18 -> 0.15 | K19: 0.15
C21: Ontario Income Tax | E21: 0.115 | F21: 0.115 | G21: 0.115 | H21: 0.115 | I21: 0.115 | J21: 0.115 | K21: 0.115
C23: Combined Federal and Ontario | E23: =E19+E21 -> 0.265 | F23: 0.265 | G23: 0.265 | H23: =H19+H21 -> 0.265 | I23: 0.265 | J23: =J19+J21 -> 0.265 | K23: 0.265
C25: Federal & Ontario Small Business
C26: Federal Small Business Limit | E26: 500000 | F26: 500000 | G26: 500000 | H26: 500000 | I26: 500000 | J26: 500000 | K26: 500000
C27: Ontario Small Business Limit | E27: 500000 | F27: 500000 | G27: 500000 | H27: 500000 | I27: 500000 | J27: 500000 | K27: 500000
C29: Federal Small Business Rate | E29: 0.09 | F29: 0.09 | G29: 0.09 | H29: 0.09 | I29: 0.09 | J29: 0.09 | K29: 0.09
C31: Ontario Small Business Rate | E31: 0.035 | F31: 0.032 | G31: 0.032 | H31: 0.032 | I31: 0.032 | J31: 0.032 | K31: 0.032
C34: Notes
C35: 1. The Ontario Energy Board's proxy for taxable capital is rate base.
C36: 2. The appropriate Federal and Ontario small business rates are calculated in the Income/PILs Workform. The Federal and Ontario small business deduction:
C37: a. is applicable if taxable capital is below $10 million.
C38: b. is phased out with taxable capital of more than $10 million.
C39: c. is completely eliminated when the taxable capital is $15 million or more. Effective for the 2022 taxation year, the Federal small business deduction is revised to be completely eliminated when the taxable capital is $50 million or more.

Sheet H0 PILs,Tax Provision Hist
C6: PILs Tax Provision - Historical Year
C7: INFORMATION NOT AVAILABLE. THIS SCHEDULE WILL BE UPDATED ONCE 2023 TAX RETURN IS FILED IN JUNE 2024.
C8: Note: Input the actual information from the tax returns for the historical year. | I8: Wires Only
C10: Regulatory Taxable Income | H10: H1 | I10: ='H1 Sch 1 Taxable Income Hist'!G115 -> 0 | J10: A
C12: Ontario Income Taxes
C13: Income tax payable | D13: Ontario Income Tax | F13: B | H13: C = A * B
C15: Small business credit | D15: Ontario Small Business Threshold | E15: =IF(I10>'B. Tax Rates & Exemptions'!E27,'B. Tax Rates & Exemptions'!E27,0) -> 0 | F15: D
D16: Rate reduction (negative) | F16: E | H16: F = D * E
C20: Ontario Income tax | I20: =SUM(G13:G19) -> 0 | J20: J = C + F
C23: Combined Tax Rate and PILs | D23: Ontario Tax Rate (Maximum 11.5%) | H23: B
D24: Federal tax rate (Maximum 15%) | H24: C
D25: Combined tax rate (Maximum 26.5%) | I25: =SUM(G23:G24) -> 0 | J25: D = B+C
C28: Total Income Taxes | I28: =I10*I25 -> 0 | J28: E = A * D
C30: Investment Tax Credits | J30: F
C31: Miscellaneous Tax Credits | J31: G
C32: Total Tax Credits | I32: =SUM(I30:I31) -> 0 | J32: H = F + G
C34: Corporate PILs/Income Tax Provision for Historical Year | I34: =IF(I28-I32<0,0,I28-I32) -> 0 | J34: I = E - H

Sheet H1 Sch 1 Taxable Income Hist
C8: Adjusted Taxable Income - Historical Year
C9: INFORMATION NOT AVAILABLE. THIS SCHEDULE WILL BE UPDATED ONCE 2023 TAX RETURN IS FILED IN JUNE 2024.
D11: T2S1 line # | E11: Total for Legal Entity | F11: Non-Distribution Eliminations | G11: Historic Wires Only
C12: Income before PILs/Taxes | D12: (A + 101 + 102) | G12: =+E12-F12 -> 0
C13: Additions:
C14: Interest and penalties on taxes | D14: 103 | G14: =+E14-F14 -> 0
C15: Amortization of tangible assets | D15: 104 | G15: 0
C16: Amortization of intangible assets | D16: 106 | G16: 0
C17: Recapture of capital cost allowance from Schedule 8 | D17: 107 | G17: 0
C18: Income inclusion under subparagraph 13(38)(d)(iii) from Schedule 10 | D18: 108 | G18: 0
C19: Loss in equity of subsidiaries and affiliates | D19: 110 | G19: 0
C20: Loss on disposal of assets | D20: 111 | G20: 0
C21: Charitable donations and gifts from Schedule 2 | D21: 112 | G21: 0
C22: Taxable capital gains from Schedule 6 | D22: 113 | G22: 0
C23: Political contributions | D23: 114 | G23: 0
C24: Deferred and prepaid expenses | D24: 116 | G24: 0
C25: Scientific research expenditures deducted on financial statements | D25: 118 | G25: 0
C26: Capitalized interest | D26: 119 | G26: 0
C27: Non-deductible club dues and fees | D27: 120 | G27: 0
C28: Non-deductible meals and entertainment expense | D28: 121 | G28: 0
C29: Non-deductible automobile expenses | D29: 122 | G29: 0
C30: Non-deductible life insurance premiums | D30: 123 | G30: 0
C31: Non-deductible company pension plans | D31: 124 | G31: 0
C32: Tax reserves deducted in prior year | D32: 125 | G32: 0
C33: Reserves from financial statements – balance at the end of the year | D33: 126 | G33: 0
C34: Soft costs on construction and renovation of buildings | D34: 127 | G34: 0
C35: Capital items expensed | D35: 206 | G35: 0
C36: Debt issue expense | D36: 208 | G36: 0
C37: Development expenses claimed in current year | D37: 212 | G37: 0
C38: Financing fees deducted in books | D38: 216 | G38: 0
C39: Gain on settlement of debt | D39: 220 | G39: 0
C40: Non-deductible advertising | D40: 226 | G40: 0
C41: Non-deductible interest | D41: 227 | G41: 0
C42: Non-deductible legal and accounting fees | D42: 228 | G42: 0
C43: Recapture of SR&ED expenditures | D43: 231 | G43: 0
C44: Share issue expense | D44: 235 | G44: 0
C45: Write down of capital property | D45: 236 | G45: 0
C46: Amounts received in respect of qualifying environment trust per paragraphs 12(1)(z.1) and 12(1)(z.2) | D46: 237 | G46: 0
C47: Other additions
C48: Interest Expensed on Capital Leases | D48: 295 | G48: 0
C49: Realized Income from Deferred Credit Accounts | D49: 295 | G49: 0
C50: Pensions | D50: 295 | G50: 0
C51: Non-deductible penalties | D51: 295 | G51: 0
D52: 295 | G52: 0
D53: 295 | G53: =+E53-F53 -> 0
C54: ARO Accretion expense | G54: 0
C55: Capital Contributions Received (ITA 12(1)(x)) | G55: 0
C56: Lease Inducements Received (ITA 12(1)(x)) | G56: 0
C57: Deferred Revenue (ITA 12(1)(a)) | G57: 0
C58: Prior Year Investment Tax Credits received | G58: 0
G59: 0
G60: 0
G61: 0
G62: 0
G63: 0
G64: 0
G65: 0
G66: 0
G67: 0
G68: 0
C69: Total Additions | E69: =SUM(E13:E68) -> 0 | F69: =SUM(F13:F68) -> 0 | G69: =SUM(G13:G68) -> 0
C71: Deductions:
C72: Gain on disposal of assets per financial statements | D72: 401 | G72: =+E72-F72 -> 0
C73: Non-taxable dividends under section 83 | D73: 402 | G73: 0
C74: Capital cost allowance from Schedule 8 | D74: 403 | G74: 0
C75: Terminal loss from Schedule 8 | D75: 404 | G75: 0
C76: Allowable business investment loss | D76: 406 | G76: 0
C77: Deferred and prepaid expenses | D77: 409 | G77: 0
C78: Scientific research expenses claimed in year | D78: 411 | G78: 0
C79: Tax reserves claimed in current year | D79: 413 | G79: 0
C80: Reserves from financial statements - balance at beginning of year | D80: 414 | G80: 0
C81: Contributions to deferred income plans | D81: 416 | G81: 0
C82: Book income of joint venture or partnership | D82: 305 | G82: 0
C83: Equity in income from subsidiary or affiliates | D83: 306 | G83: 0
C84: Other deductions
C85: Interest capitalized for accounting deducted for tax | D85: 395 | G85: 0
C86: Capital Lease Payments | D86: 395 | G86: 0
C87: Non-taxable imputed interest income on deferral and variance accounts | D87: 395 | G87: 0
D88: 395 | G88: 0
D89: 395 | G89: 0
C90: ARO Payments - Deductible for Tax when Paid | G90: 0
C91: ITA 13(7.4) Election - Capital Contributions Received | G91: 0
C92: ITA 13(7.4) Election - Apply Lease Inducement to cost of Leaseholds | G92: 0
C93: Deferred Revenue - ITA 20(1)(m) reserve | G93: 0
C94: Principal portion of lease payments | G94: 0
C95: Lease Inducement Book Amortization credit to income | G95: 0
C96: Financing fees for tax ITA 20(1)(e) and (e.1) | G96: 0
G97: 0
G98: 0
G99: 0
G100: 0
G101: 0
G102: 0
G103: 0
G104: 0
C105: Total Deductions | E105: =SUM(E72:E104) -> 0 | F105: =SUM(F72:F104) -> 0 | G105: =SUM(G72:G104) -> 0
C107: Net Income for Tax Purposes | E107: =+E12+E69-E105 -> 0 | F107: =+F12+F69-F105 -> 0 | G107: =+G12+G69-G105 -> 0
C109: Charitable donations from Schedule 2 | D109: 311 | G109: =+E109-F109 -> 0
C110: Taxable dividends received under section 112 or 113 | D110: 320 | G110: =+E110-F110 -> 0
C111: Non-capital losses of previous tax years from Schedule 4 | D111: 331 | G111: =+E111-F111 -> 0
C112: Net capital losses of previous tax years from Schedule 4 | D112: 332 | G112: =+E112-F112 -> 0
C113: Limited partnership losses of previous tax years from Schedule 4 | D113: 335 | G113: =+E113-F113 -> 0
C115: TAXABLE INCOME | E115: =+E107-SUM(E109:E113) -> 0 | F115: =+F107-SUM(F109:F113) -> 0 | G115: =+G107-SUM(G109:G113) -> 0 | H115: H0

Sheet H4 Sch 4 Loss Cfwd Hist
C7: INFORMATION NOT AVAILABLE. THIS SCHEDULE WILL BE UPDATED ONCE 2023 TAX RETURN IS FILED IN JUNE 2024.
C9: Schedule 4 Loss Carry Forward - Historical
C11: Corporation Loss Continuity and Application
C13: Non-Capital Loss Carry Forward Deduction | F13: Total | G13: Non-Distribution Portion | H13: Utility Balance
C14: Actual Historical | H14: =F14-G14 -> 0 | I14: B4
C16: Net Capital Loss Carry Forward Deduction | F16: Total | G16: Non-Distribution Portion | H16: Utility Balance
C17: Actual Historical | H17: =F17-G17 -> 0 | I17: B4

Sheet H8 Sch 8 CCA Hist
C6: Schedule 8 - Historical Year
C8: BELOW ARE FORECASTED AMOUNTS. THIS SCHEDULE WILL BE UPDATED ONCE 2023 TAX RETURN IS FILED IN JUNE 2024.
C11: Class | D11: Class Description | E11: UCC End of Year Historical per tax returns | F11: Less: Non-Distribution Portion | G11: UCC Regulated Historical Year | H11: Working Paper Reference
C12: 1 | D12: Buildings, Distribution System (acq'd post 1987) | E12: =891721624+26550812 -> 918272436 | G12: =+E12-F12 -> 918272436 | H12: B8
C13: 1b | D13: Non-Residential Buildings [Reg. 1100(1)(a.1) election] | G13: =+E13-F13 -> 0 | H13: B8
C14: 2 | D14: Distribution System (acq'd pre 1988) | E14: 166817528 | G14: =+E14-F14 -> 166817528 | H14: B8
C15: 3 | D15: Buildings (acq'd pre 1988) | G15: 0 | H15: B8
C16: 6 | D16: Certain Buildings; Fences | E16: 1665385 | G16: =+E16-F16 -> 1665385 | H16: B8
C17: 8 | D17: General Office Equipment, Furniture, Fixtures | E17: =19479911+289432+258+1 -> 19769602 | F17: =289432 -> 289432 | G17: 19480170 | H17: B8
C18: 10 | D18: Motor Vehicles, Fleet | E18: =10658903+9729 -> 10668632 | F18: 9729 | G18: 10658903 | H18: B8
C19: 10.1 | D19: Certain Automobiles | E19: =4285*8 -> 34280 | G19: 34280 | H19: B8
C20: 12 | D20: Computer Application Software (Non-Systems) | E20: 69519 | G20: 69519 | H20: B8
C21: 13 1 | D21: Lease # 1 | E21: 96922 | G21: 96922 | H21: B8
C22: 13 2 | D22: Lease # 2 | E22: 10880 | G22: 10880 | H22: B8
C23: 13 3 | D23: Lease # 3 | E23: 7437 | G23: 7437 | H23: B8
C24: 13 4 | D24: Lease # 4 | G24: 0 | H24: B8
C25: 14 | D25: Limited Period Patents, Franchises, Concessions or Licences | G25: 0 | H25: B8
C26: 14.1 | D26: Eligible Capital Property (acq'd pre 2017) | E26: =31133391+1 -> 31133392 | G26: =+E26-F26 -> 31133392 | H26: B8
C27: 14.1 | D27: Eligible Capital Property (acq'd post 2016) | E27: 144132264 | G27: =+E27-F27 -> 144132264 | H27: B8
C28: 17 | D28: Elec. Generation Equip. (Non-Bldng, acq'd post Feb 27/00); Roads, Lots, Storage | E28: 20200765 | G28: 20200765 | H28: B8
C29: 42 | D29: Fibre Optic Cable | E29: 10075427 | G29: =+E29-F29 -> 10075427 | H29: B8
C30: 43.1 | D30: Certain Clean Energy/Energy-Efficient Generation Equipment | E30: 8623 | G30: 8623 | H30: B8
C31: 43.2 | D31: Certain Clean Energy/Energy-Efficient Generation Equipment | E31: 51990 | F31: 51990 | G31: 0 | H31: B8
C32: 45 | D32: Computers & System Software (acq'd post Mar 22/04 and pre Mar 19/07) | E32: 207 | G32: 207 | H32: B8
C33: 46 | D33: Data Network Infrastructure Equipment (acq'd post Mar 22/04) | E33: =3247490-110 -> 3247380 | F33: -110 | G33: 3247490 | H33: B8
C34: 47 | D34: Distribution System (acq'd post Feb 22/05) | E34: =3034544379+22844264+1634977+61163 -> 3059084783 | F34: =1634977+61163 -> 1696140 | G34: 3057388643 | H34: B8
C35: 50 | D35: General Purpose Computer Hardware & Software (acq'd post Mar 18/07) | E35: =5626504+1+5967 -> 5632472 | F35: =1+5967 -> 5968 | G35: 5626504 | H35: B8
C36: 95 | D36: CWIP | E36: =468232562+1042332 -> 469274894 | F36: 1042332 | G36: 468232562 | H36: B8
G37: 0
G38: 0
G39: 0
G40: 0
G41: 0
G42: 0
G43: 0
G44: 0
D45: SUB-TOTAL - UCC | E45: =SUM(E12:E44) -> 4860254818 | F45: =SUM(F12:F44) -> 3095481 | G45: =SUM(G12:G44) -> 4857159337

Sheet H13 Sch 13 Reserves Hist
C8: Schedule 13 Tax Reserves - Historical
C10: Continuity of Reserves
C11: BELOW ARE FORECASTED AMOUNTS. THIS SCHEDULE WILL BE UPDATED ONCE 2023 TAX RETURN IS FILED IN JUNE 2024.
C13: Description | D13: Historical Balance as per tax returns | E13: Non-Distribution Eliminations | F13: Utility Only
C15: Capital gains reserves ss.40(1) | F15: =D15-E15 -> 0 | G15: B13
C16: Tax reserves not deducted for accounting purposes
C17: Reserve for doubtful accounts ss. 20(1)(l) | F17: =D17-E17 -> 0 | G17: B13
C18: Reserve for undelivered goods and services not rendered ss. 20(1)(m) | F18: 0 | G18: B13
C19: Reserve for unpaid amounts ss. 20(1)(n) | F19: 0 | G19: B13
C20: Debt & share issue expenses ss. 20(1)(e) | F20: 0 | G20: B13
C21: Other tax reserves | F21: 0 | G21: B13
F22: 0
F23: 0
F24: 0
F25: 0
F26: 0
C27: Total | D27: =SUM(D17:D26) -> 0 | E27: =SUM(E17:E26) -> 0 | F27: =SUM(F17:F26) -> 0
C29: Financial Statement Reserves (not deductible for Tax Purposes)
C30: General reserve for inventory obsolescence (non-specific) | F30: =D30-E30 -> 0 | G30: B13
C31: General reserve for bad debts | F31: 0 | G31: B13
C32: Accrued Employee Future Benefits: | F32: 0 | G32: B13
C33: - Medical and Life Insurance | F33: 0 | G33: B13
C34: -Short & Long-term Disability | F34: 0 | G34: B13
C35: -Accmulated Sick Leave | F35: 0 | G35: B13
C36: - Termination Cost | D36: 4470180 | F36: 4470180 | G36: B13
C37: - Other Post-Employment Benefits | D37: 232168000 | E37: 1377000 | F37: 230791000 | G37: B13
C38: Provision for Environmental Costs | F38: 0 | G38: B13
C39: Restructuring Costs | F39: 0 | G39: B13
C40: Accrued Contingent Litigation Costs | F40: 0 | G40: B13
C41: Accrued Self-Insurance Costs | F41: 0 | G41: B13
C42: Other Contingent Liabilities | F42: 0 | G42: B13
C43: Bonuses Accrued and Not Paid Within 180 Days of Year-End ss. 78(4) | F43: 0 | G43: B13
C44: Unpaid Amounts to Related Person and Not Paid Within 3 Taxation Years ss. 78(1) | F44: 0 | G44: B13
C45: Other | F45: 0 | G45: B13
F49: 0
F50: 0
C51: Total | D51: =SUM(D30:D50) -> 236638180 | E51: =SUM(E30:E50) -> 1377000 | F51: =SUM(F30:F50) -> 235261180

Sheet B0 PILs,Tax Provision Bridge
B6: PILS Tax Provision - Bridge Year
J8: Wires Only
I9: Reference
C10: Regulatory Taxable Income | I10: B1 | J10: ='B1 Sch 1 Taxable Income Bridge'!F111 -> 25066130.15 | K10: A | L10: /C
D12: Tax Rate | E12: Small Business Rate (If Applicable) | F12: Taxes Payable | G12: Effective Tax Rate
C13: Ontario (Max 11.5%) | D13: 0.115 | E13: =+D13 -> 0.115 | F13: =IF(J10<500000,J10,500000)*E13+IF(J10>500000,J10-500000,0)*D13 -> 2882604.968 | G13: =IF(F13=0,0,+F13/J10) -> 0.115 | H13: B
C14: Federal (Max 15%) | D14: 0.15 | E14: =+D14 -> 0.15 | F14: =E14*IF(J10<500000,J10,500000)+IF(J10>500000,J10-500000,0)*D14 -> 3759919.523 | G14: =IF(F14=0,0,+F14/J10) -> 0.15 | H14: C
C16: Combined effective tax rate (Max 26.5%) | J16: =SUM(G13:G14) -> 0.265 | K16: D = B + C
C19: Total Income Taxes | J19: =IF(J10*J16<0,0,J10*J16) -> 6642524.491 | K19: E = A * D | L19: /C
C21: Investment Tax Credits | J21: 1503000 | K21: F
C22: Miscellaneous Tax Credits | J22: 933000 | K22: G
C23: Total Tax Credits | J23: =SUM(J21:J22) -> 2436000 | K23: H = F + G
C25: Corporate PILs/Income Tax Provision for Bridge Year | J25: =IF(J19-J23<0,0,J19-J23) -> 4206524.491 | K25: I = E - H | L25: /C
C27: Corporate PILs/Income Tax Provision Gross Up 1 | H27: =(1-J16) -> 0.735 | I27: J = 1-D | J27: =J25/H27-J25 -> 1516638.082 | K27: K = I/J-I | L27: /C
C30: Income Tax (grossed-up) before tax credits reclass to OM&A | J30: =J25+J27 -> 5723162.573 | K30: L = K + I | L30: /C
C31: Tax credits reclass to OM&A | J31: 2457000 | K31: M
C32: Tax credits reclass to OM&A - gross up | H32: =(1-J16) -> 0.735 | I32: J = 1-D | J32: =J31/H32-J31 -> 885857.1429 | K32: N
C33: Income Tax (grossed-up) after tax credits reclass to OM&A | J33: =+J30+J31+J32 -> 9066019.716 | K33: O = L + M + N | L33: /C
C37: Note:
C38: 1. This is for the derivation of Bridge year PILs income tax expense and should not be used for Test year revenue requirement calculations.

Sheet B1 Sch 1 Taxable Income Bridge
B5: Adjusted Taxable Income - Bridge Year
D7: T2S1 line # | E7: Working Paper Reference | F7: Total for Regulated Utility
C8: Income before PILs/Taxes | D8: (A + 101 + 102) | F8: =190729522-603178 -> 190126344 | G8: /C
C10: Additions:
C11: Interest and penalties on taxes | D11: 103
C12: Amortization of tangible assets | D12: 104 | F12: 270629442
C13: Amortization of intangible assets | D13: 106
C14: Recapture of capital cost allowance from Schedule 8 | D14: 107 | E14: B8 | F14: ='B8 Sch 8 CCA Bridge'!S43 -> 0
C15: Income inclusion under subparagraph 13(38)(d)(iii) | D15: 108
C16: Income or loss for tax purposes- joint ventures or partnerships | D16: 109
C17: Loss in equity of subsidiaries and affiliates | D17: 110
C18: Loss on disposal of assets | D18: 111
C19: Charitable donations and gifts from Schedule 2 | D19: 112
C20: Taxable capital gains | D20: 113
C21: Political contributions | D21: 114
C22: Deferred and prepaid expenses | D22: 116
C23: Scientific research expenditures deducted on financial statements | D23: 118
C24: Capitalized interest | D24: 119
C25: Non-deductible club dues and fees | D25: 120 | F25: 340000
C26: Non-deductible meals and entertainment expense | D26: 121 | F26: 27000
C27: Non-deductible automobile expenses | D27: 122
C28: Non-deductible life insurance premiums | D28: 123
C29: Non-deductible company pension plans | D29: 124
C30: Tax reserves deducted in prior year | D30: 125 | E30: B13 | F30: ='B13 Sch 13 Reserves Bridge'!G22 -> 0
C31: Reserves from financial statements- balance at end of year | D31: 126 | E31: B13 | F31: ='B13 Sch 13 Reserves Bridge'!K43 -> 236567263
C32: Soft costs on construction and renovation of buildings | D32: 127
C33: Capital items expensed | D33: 206
C34: Debt issue expense | D34: 208
C35: Development expenses claimed in current year | D35: 212
C36: Financing fees deducted in books | D36: 216 | F36: 1263080
C37: Gain on settlement of debt | D37: 220
C38: Non-deductible advertising | D38: 226
C39: Non-deductible interest | D39: 227
C40: Non-deductible legal and accounting fees | D40: 228
C41: Recapture of SR&ED expenditures | D41: 231
C42: Share issue expense | D42: 235
C43: Write down of capital property | D43: 236
C44: Amounts received in respect of qualifying environment trust per paragraphs 12(1)(z.1) and 12(1)(z.2) | D44: 237
C45: Other Additions
C46: Interest Expensed on Capital Leases | D46: 295 | F46: 2371
C47: Realized Income from Deferred Credit Accounts | D47: 295
C48: Pensions | D48: 295
C49: Non-deductible penalties | D49: 295
D50: 295
D51: 295
C52: ARO Accretion expense | F52: 2119
C53: Capital Contributions Received (ITA 12(1)(x)) | F53: 154686951
C54: Lease Inducements Received (ITA 12(1)(x))
C55: Deferred Revenue (ITA 12(1)(a)) | F55: 3061822
C56: Prior Year Investment Tax Credits received | F56: 2436000
C67: Total Additions | F67: =SUM(F10:F66) -> 669016048
C68: Deductions:
C69: Gain on disposal of assets per financial statements | D69: 401
C70: Dividends not taxable under section 83 | D70: 402
C71: Capital cost allowance from Schedule 8 | D71: 403 | E71: B8 | F71: ='B8 Sch 8 CCA Bridge'!U43 -> 431768195.8
C72: Terminal loss from Schedule 8 | D72: 404 | E72: B8 | F72: ='B8 Sch 8 CCA Bridge'!T43 -> 0
C73: Allowable business investment loss | D73: 406
C74: Deferred and prepaid expenses | D74: 409
C75: Scientific research expenses claimed in year | D75: 411
C76: Tax reserves claimed in current year | D76: 413 | E76: B13 | F76: ='B13 Sch 13 Reserves Bridge'!K22 -> 0
C77: Reserves from financial statements - balance at beginning of year | D77: 414 | E77: B13 | F77: ='B13 Sch 13 Reserves Bridge'!G43 -> 235261180
C78: Contributions to deferred income plans | D78: 416
C79: Book income of joint venture or partnership | D79: 305
C80: Equity in income from subsidiary or affiliates | D80: 306
C81: Other deductions
C82: Interest capitalized for accounting deducted for tax | D82: 395
C83: Capital Lease Payments | D83: 395 | F83: 48449
C84: Non-taxable imputed interest income on deferral and variance accounts | D84: 395
D85: 395
D86: 395
C87: ARO Payments - Deductible for Tax when Paid | F87: 38656
C88: ITA 13(7.4) Election - Capital Contributions Received | F88: =+F53 -> 154686951
C89: ITA 13(7.4) Election - Apply Lease Inducement to cost of Leaseholds
C90: Deferred Revenue - ITA 20(1)(m) reserve | F90: =+F55 -> 3061822
C91: Principal portion of lease payments
C92: Lease Inducement Book Amortization credit to income
C93: Financing fees for tax ITA 20(1)(e) and (e.1) | F93: 2318745
C94: Land Lease payment capitalized for accounting | F94: 89423
C95: Other Post-Employment Benefits adjustment - change in balance with no Income Statement Impact | F95: 358000
C96: Other Post-Employment Benefits adjustment - current year capitalized portion with no Income Statement Impact | F96: 6444840
C102: Total Deductions | E102: calculated | F102: =SUM(F69:F101) -> 834076261.8
C104: Net Income for Tax Purposes | E104: calculated | F104: =+F8+F67-F102 -> 25066130.15 | G104: /C
C105: Charitable donations | D105: 311
C106: Taxable dividends received under section 112 or 113 | D106: 320
C107: Non-capital losses of previous tax years from Schedule 4 | D107: 331 | E107: B4 | F107: ='B4 Sch 4 Loss Cfwd Bridge'!G13*-1 -> 0
C108: Net capital losses of previous tax years from Schedule 4 | D108: 332 | E108: B4 | F108: ='B4 Sch 4 Loss Cfwd Bridge'!G20*-1 -> 0
C109: Limited partnership losses of previous tax years from Schedule 4 | D109: 335
C111: TAXABLE INCOME | E111: calculated | F111: =SUM(F104:F109) -> 25066130.15 | G111: /C

Sheet B4 Sch 4 Loss Cfwd Bridge
C7: Corporation Loss Continuity and Application
C9: Schedule 4 Loss Carry Forward - Bridge Year
C11: Non-Capital Loss Carry Forward Deduction | G11: Total
C12: Actual Historical | F12: H4 | G12: ='H4 Sch 4 Loss Cfwd Hist'!H14 -> 0
C13: Amount to be used in Bridge Year | F13: B1 | G13: =IF('B1 Sch 1 Taxable Income Bridge'!F104<0,0,IF('B1 Sch 1 Taxable Income Bridge'!F104>G12,G12,'B1 Sch 1 Taxable Income Bridge'!F104)) -> 0
C14: Loss Carry Forward Generated in Bridge Year (if any) | F14: B1 | G14: =IF('B1 Sch 1 Taxable Income Bridge'!F104<0, 'B1 Sch 1 Taxable Income Bridge'!F104*-1, 0) -> 0
C15: Other Adjustments
C16: Balance available for use post Bridge Year | F16: calculated | G16: =G12-G13+G14+G15 -> 0 | H16: T4
C18: Net Capital Loss Carry Forward Deduction | G18: Total
C19: Actual Historical | F19: H4 | G19: ='H4 Sch 4 Loss Cfwd Hist'!H17 -> 0
C20: Amount to be used in Bridge Year
C21: Loss Carry Forward Generated in Bridge Year (if any) | F21: B1
C22: Other Adjustments
C23: Balance available for use post Bridge Year | F23: calculated | G23: =G19-G20+G21+G22 -> 0 | H23: T4

Sheet B8 Sch 8 CCA Bridge
B7: Schedule 8 CCA - Bridge Year
B9: (1) Class | C9: Class Description | D9: Working Paper Reference | E9: (2) Undepreciated capital cost (UCC) at the beginning of the bridge year | F9: (3) Cost of acquisitions during the year (new property must be available for use, except CWIP) | G9: (4) Cost of acquisitions from column 3 that are accelerated investment incentive property (AIIP) | H9: (5) Adjustments and transfers (enter amounts that will reduce the UCC as negatives) | I9: (6) Amount from column 5 that is assistance received or receivable during the year for a property, subsequent to its disposition | J9: (7) Amount from column 5 that is repaid during the year for a property, subsequent to its disposition | K9: (8) Proceeds of dispositions | L9: (9) UCC (column 2 plus column 3 plus or minus column 5 minus column 8) | M9: (10) Proceeds of disposition available to reduce the UCC of AIIP (column 8 plus column 6 minus column 3 plus column 4 minus column 7) (if negative, enter "0") | N9: (11) Net capital cost additions of AIIP acquired during the year (column 4 minus column 10) (if negative, enter "0") | O9: Relevant factor | P9: (12) UCC adjustment for AIIP acquired during the year (column 11 multiplied by the relevant factor) | Q9: (13) UCC adjustment for non-AIIP acquired during the year (0.5 multiplied by the result of column 3 minus column 4 minus column 6 plus column 7 minus column 8) (if negative, enter "0") | R9: (14) CCA Rate % | S9: (15) Recapture of CCA | T9: (16) Terminal Loss | U9: (17) CCA (for declining balance method, the result of column 9 plus column 12 minus column 13, multiplied by column 14) | W9: (18) UCC at the end of the bridge year (column 9 minus column 17) | X9: Working Paper Reference
B10: =IF(ISBLANK('H8 Sch 8 CCA Hist'!C12), "", 'H8 Sch 8 CCA Hist'!C12) -> 1 | C10: =IF(ISBLANK('H8 Sch 8 CCA Hist'!D12), "", 'H8 Sch 8 CCA Hist'!D12) -> Buildings, Distribution System (acq'd post 1987) | D10: H8 | E10: =IF(ISBLANK('H8 Sch 8 CCA Hist'!E12),0, 'H8 Sch 8 CCA Hist'!G12) -> 918272436 | F10: 21328139 | G10: 21313243 | L10: =IFERROR(E10+F10+H10-K10,0) -> 939600575 | M10: =IF((K10+I10-F10+G10-J10)<0,0,(K10+I10-F10+G10-J10)) -> 0 | N10: =IF((G10-M10)<0,0,(G10-M10)) -> 21313243 | O10: 0 | P10: =N10*O10 -> 0 | Q10: =IF((0.5*(F10-G10-I10+J10-K10))<0,0,(0.5*(F10-G10-I10+J10-K10))) -> 7448 | R10: 0.04 | U10: =IF(OR(L10<0,T10>0),0,(L10+P10-Q10)*R10) -> 37583725.08 | W10: =IF(L10<0,0,L10-T10-U10) -> 902016849.9 | X10: T8
B11: =IF(ISBLANK('H8 Sch 8 CCA Hist'!C13), "", 'H8 Sch 8 CCA Hist'!C13) -> 1b | C11: =IF(ISBLANK('H8 Sch 8 CCA Hist'!D13), "", 'H8 Sch 8 CCA Hist'!D13) -> Non-Residential Buildings [Reg. 1100(1)(a.1) election] | D11: H8 | E11: =IF(ISBLANK('H8 Sch 8 CCA Hist'!E13),0, 'H8 Sch 8 CCA Hist'!G13) -> 0 | L11: =IFERROR(E11+F11+H11-K11,"") -> 0 | M11: =IF((K11+I11-F11+G11-J11)<0,0,(K11+I11-F11+G11-J11)) -> 0 | N11: =IF((G11-M11)<0,0,(G11-M11)) -> 0 | O11: 0 | P11: =N11*O11 -> 0 | Q11: =IF((0.5*(F11-G11-I11+J11-K11))<0,0,(0.5*(F11-G11-I11+J11-K11))) -> 0 | R11: 0.06 | U11: =IF(OR(L11<0,T11>0),0,(L11+P11-Q11)*R11) -> 0 | W11: =IF(L11<0,0,L11-T11-U11) -> 0 | X11: T8
B12: =IF(ISBLANK('H8 Sch 8 CCA Hist'!C14), "", 'H8 Sch 8 CCA Hist'!C14) -> 2 | C12: =IF(ISBLANK('H8 Sch 8 CCA Hist'!D14), "", 'H8 Sch 8 CCA Hist'!D14) -> Distribution System (acq'd pre 1988) | D12: H8 | E12: =IF(ISBLANK('H8 Sch 8 CCA Hist'!E14),0, 'H8 Sch 8 CCA Hist'!G14) -> 166817528 | L12: 166817528 | M12: 0 | N12: 0 | P12: 0 | Q12: 0 | R12: 0.06 | U12: 10009051.68 | W12: 156808476.3 | X12: T8
B13: =IF(ISBLANK('H8 Sch 8 CCA Hist'!C15), "", 'H8 Sch 8 CCA Hist'!C15) -> 3 | C13: =IF(ISBLANK('H8 Sch 8 CCA Hist'!D15), "", 'H8 Sch 8 CCA Hist'!D15) -> Buildings (acq'd pre 1988) | D13: H8 | E13: =IF(ISBLANK('H8 Sch 8 CCA Hist'!E15),0, 'H8 Sch 8 CCA Hist'!G15) -> 0 | L13: 0 | M13: 0 | N13: 0 | P13: 0 | Q13: 0 | R13: 0.05 | U13: 0 | W13: 0 | X13: T8
B14: =IF(ISBLANK('H8 Sch 8 CCA Hist'!C16), "", 'H8 Sch 8 CCA Hist'!C16) -> 6 | C14: =IF(ISBLANK('H8 Sch 8 CCA Hist'!D16), "", 'H8 Sch 8 CCA Hist'!D16) -> Certain Buildings; Fences | D14: H8 | E14: =IF(ISBLANK('H8 Sch 8 CCA Hist'!E16),0, 'H8 Sch 8 CCA Hist'!G16) -> 1665385 | F14: 50000 | G14: 50000 | L14: 1715385 | M14: 0 | N14: 50000 | O14: 0 | P14: 0 | Q14: 0 | R14: 0.1 | U14: 171538.5 | W14: 1543846.5 | X14: T8
B15: =IF(ISBLANK('H8 Sch 8 CCA Hist'!C17), "", 'H8 Sch 8 CCA Hist'!C17) -> 8 | C15: =IF(ISBLANK('H8 Sch 8 CCA Hist'!D17), "", 'H8 Sch 8 CCA Hist'!D17) -> General Office Equipment, Furniture, Fixtures | D15: H8 | E15: =IF(ISBLANK('H8 Sch 8 CCA Hist'!E17),0, 'H8 Sch 8 CCA Hist'!G17) -> 19480170 | F15: 5477218 | G15: 5450374 | L15: 24957388 | M15: 0 | N15: 5450374 | O15: 0 | P15: 0 | Q15: 13422 | R15: 0.2 | U15: 4988793.2 | W15: 19968594.8 | X15: T8
B16: =IF(ISBLANK('H8 Sch 8 CCA Hist'!C18), "", 'H8 Sch 8 CCA Hist'!C18) -> 10 | C16: =IF(ISBLANK('H8 Sch 8 CCA Hist'!D18), "", 'H8 Sch 8 CCA Hist'!D18) -> Motor Vehicles, Fleet | D16: H8 | E16: =IF(ISBLANK('H8 Sch 8 CCA Hist'!E18),0, 'H8 Sch 8 CCA Hist'!G18) -> 10658903 | F16: 3688343 | G16: 3688343 | L16: 14347246 | M16: 0 | N16: 3688343 | O16: 0 | P16: 0 | Q16: 0 | R16: 0.3 | U16: 4304173.8 | W16: 10043072.2 | X16: T8
B17: =IF(ISBLANK('H8 Sch 8 CCA Hist'!C19), "", 'H8 Sch 8 CCA Hist'!C19) -> 10.1 | C17: =IF(ISBLANK('H8 Sch 8 CCA Hist'!D19), "", 'H8 Sch 8 CCA Hist'!D19) -> Certain Automobiles | D17: H8 | E17: =IF(ISBLANK('H8 Sch 8 CCA Hist'!E19),0, 'H8 Sch 8 CCA Hist'!G19) -> 34280 | L17: 34280 | M17: 0 | N17: 0 | O17: 0 | P17: 0 | Q17: 0 | R17: 0.3 | U17: =IF(OR(L17<0,T17>0),0,(L17+P17-Q17)*R17)+4 -> 10288 | W17: 23992 | X17: T8
B18: =IF(ISBLANK('H8 Sch 8 CCA Hist'!C20), "", 'H8 Sch 8 CCA Hist'!C20) -> 12 | C18: =IF(ISBLANK('H8 Sch 8 CCA Hist'!D20), "", 'H8 Sch 8 CCA Hist'!D20) -> Computer Application Software (Non-Systems) | D18: H8 | E18: =IF(ISBLANK('H8 Sch 8 CCA Hist'!E20),0, 'H8 Sch 8 CCA Hist'!G20) -> 69519 | F18: 60844705 | G18: 60775186 | L18: 60914224 | M18: 0 | N18: 60775186 | O18: 0 | P18: 0 | Q18: 34759.5 | R18: 1 | U18: 60879464.5 | W18: 34759.5 | X18: T8
B19: 13 1 | C19: =IF(ISBLANK('H8 Sch 8 CCA Hist'!D21), "", 'H8 Sch 8 CCA Hist'!D21) -> Lease # 1 | D19: H8 | E19: =IF(ISBLANK('H8 Sch 8 CCA Hist'!E21),0, 'H8 Sch 8 CCA Hist'!G21) -> 96922 | L19: 96922 | M19: 0 | N19: 0 | O19: 0 | P19: 0 | Q19: 0 | R19: NA | U19: 21209 | W19: 75713 | X19: T8
B20: 13 2 | C20: =IF(ISBLANK('H8 Sch 8 CCA Hist'!D22), "", 'H8 Sch 8 CCA Hist'!D22) -> Lease # 2 | D20: H8 | E20: =IF(ISBLANK('H8 Sch 8 CCA Hist'!E22),0, 'H8 Sch 8 CCA Hist'!G22) -> 10880 | L20: 10880 | M20: 0 | N20: 0 | O20: 0 | P20: 0 | Q20: 0 | R20: NA | U20: 7254 | W20: 3626 | X20: T8
B21: 13 3 | C21: =IF(ISBLANK('H8 Sch 8 CCA Hist'!D23), "", 'H8 Sch 8 CCA Hist'!D23) -> Lease # 3 | D21: H8 | E21: =IF(ISBLANK('H8 Sch 8 CCA Hist'!E23),0, 'H8 Sch 8 CCA Hist'!G23) -> 7437 | L21: 7437 | M21: 0 | N21: 0 | O21: 0 | P21: 0 | Q21: 0 | R21: NA | U21: 2125 | W21: 5312 | X21: T8
B22: 13 4 | C22: =IF(ISBLANK('H8 Sch 8 CCA Hist'!D24), "", 'H8 Sch 8 CCA Hist'!D24) -> Lease # 4 | D22: H8 | E22: =IF(ISBLANK('H8 Sch 8 CCA Hist'!E24),0, 'H8 Sch 8 CCA Hist'!G24) -> 0 | F22: 9637 | G22: 9637 | L22: 9637 | M22: 0 | N22: 9637 | O22: 0 | P22: 0 | Q22: 0 | R22: NA | U22: 1927 | W22: 7710 | X22: T8
B23: =IF(ISBLANK('H8 Sch 8 CCA Hist'!C25), "", 'H8 Sch 8 CCA Hist'!C25) -> 14 | C23: =IF(ISBLANK('H8 Sch 8 CCA Hist'!D25), "", 'H8 Sch 8 CCA Hist'!D25) -> Limited Period Patents, Franchises, Concessions or Licences | D23: H8 | E23: =IF(ISBLANK('H8 Sch 8 CCA Hist'!E25),0, 'H8 Sch 8 CCA Hist'!G25) -> 0 | L23: 0 | M23: 0 | N23: 0 | O23: 0 | P23: 0 | Q23: 0 | R23: NA | U23: 0 | W23: 0 | X23: T8
B24: 14.1 | C24: Eligible Capital Property (acq'd pre Jan 1, 2017) | D24: H8 | E24: =IF(ISBLANK('H8 Sch 8 CCA Hist'!E26),0, 'H8 Sch 8 CCA Hist'!G26) -> 31133392 | L24: 31133392 | M24: 0 | N24: 0 | P24: 0 | Q24: 0 | R24: 0.07 | U24: =IF(OR(L24<0,T24>0),0,(L24+P24-Q24)*R24) -> 2179337.44 | W24: 28954054.56 | X24: T8
B25: 14.1 | C25: Eligible Capital Property (acq'd post Jan 1, 2017) | D25: H8 | E25: =IF(ISBLANK('H8 Sch 8 CCA Hist'!E27),0, 'H8 Sch 8 CCA Hist'!G27) -> 144132264 | F25: 7417521 | G25: 7417521 | L25: 151549785 | M25: 0 | N25: 7417521 | O25: 0 | P25: 0 | Q25: 0 | R25: 0.05 | U25: 7577489.25 | W25: 143972295.8 | X25: T8
B26: =IF(ISBLANK('H8 Sch 8 CCA Hist'!C28), "", 'H8 Sch 8 CCA Hist'!C28) -> 17 | C26: =IF(ISBLANK('H8 Sch 8 CCA Hist'!D28), "", 'H8 Sch 8 CCA Hist'!D28) -> Elec. Generation Equip. (Non-Bldng, acq'd post Feb 27/00); Roads, Lots, Storage | D26: H8 | E26: =IF(ISBLANK('H8 Sch 8 CCA Hist'!E28),0, 'H8 Sch 8 CCA Hist'!G28) -> 20200765 | L26: 20200765 | M26: 0 | N26: 0 | O26: 0 | P26: 0 | Q26: 0 | R26: 0.08 | U26: 1616061.2 | W26: 18584703.8 | X26: T8
B27: =IF(ISBLANK('H8 Sch 8 CCA Hist'!C29), "", 'H8 Sch 8 CCA Hist'!C29) -> 42 | C27: =IF(ISBLANK('H8 Sch 8 CCA Hist'!D29), "", 'H8 Sch 8 CCA Hist'!D29) -> Fibre Optic Cable | D27: H8 | E27: =IF(ISBLANK('H8 Sch 8 CCA Hist'!E29),0, 'H8 Sch 8 CCA Hist'!G29) -> 10075427 | F27: 119542 | G27: 119517 | L27: 10194969 | M27: 0 | N27: 119517 | O27: 0 | P27: 0 | Q27: 12.5 | R27: 0.12 | U27: 1223394.78 | W27: 8971574.22 | X27: T8
B28: =IF(ISBLANK('H8 Sch 8 CCA Hist'!C30), "", 'H8 Sch 8 CCA Hist'!C30) -> 43.1 | C28: =IF(ISBLANK('H8 Sch 8 CCA Hist'!D30), "", 'H8 Sch 8 CCA Hist'!D30) -> Certain Clean Energy/Energy-Efficient Generation Equipment | D28: H8 | E28: =IF(ISBLANK('H8 Sch 8 CCA Hist'!E30),0, 'H8 Sch 8 CCA Hist'!G30) -> 8623 | F28: 2014498 | G28: 2014498 | L28: 2023121 | M28: 0 | N28: 2014498 | O28: 1.5 | P28: 3021747 | Q28: 0 | R28: 0.3 | U28: =IF(OR(L28<0,T28>0),0,(L28+P28-Q28)*R28) -> 1513460.4 | W28: 509660.6 | X28: T8
B29: =IF(ISBLANK('H8 Sch 8 CCA Hist'!C31), "", 'H8 Sch 8 CCA Hist'!C31) -> 43.2 | C29: =IF(ISBLANK('H8 Sch 8 CCA Hist'!D31), "", 'H8 Sch 8 CCA Hist'!D31) -> Certain Clean Energy/Energy-Efficient Generation Equipment | D29: H8 | E29: =IF(ISBLANK('H8 Sch 8 CCA Hist'!E31),0, 'H8 Sch 8 CCA Hist'!G31) -> 0 | F29: 1026371 | G29: 1026371 | L29: 1026371 | M29: 0 | N29: 1026371 | O29: 0.5 | P29: 513185.5 | Q29: 0 | R29: 0.5 | U29: 769778.25 | W29: 256592.75 | X29: T8
B30: =IF(ISBLANK('H8 Sch 8 CCA Hist'!C32), "", 'H8 Sch 8 CCA Hist'!C32) -> 45 | C30: =IF(ISBLANK('H8 Sch 8 CCA Hist'!D32), "", 'H8 Sch 8 CCA Hist'!D32) -> Computers & System Software (acq'd post Mar 22/04 and pre Mar 19/07) | D30: H8 | E30: =IF(ISBLANK('H8 Sch 8 CCA Hist'!E32),0, 'H8 Sch 8 CCA Hist'!G32) -> 207 | L30: 207 | M30: 0 | N30: 0 | P30: 0 | Q30: 0 | R30: 0.45 | U30: 93.15 | W30: 113.85 | X30: T8
B31: =IF(ISBLANK('H8 Sch 8 CCA Hist'!C33), "", 'H8 Sch 8 CCA Hist'!C33) -> 46 | C31: =IF(ISBLANK('H8 Sch 8 CCA Hist'!D33), "", 'H8 Sch 8 CCA Hist'!D33) -> Data Network Infrastructure Equipment (acq'd post Mar 22/04) | D31: H8 | E31: =IF(ISBLANK('H8 Sch 8 CCA Hist'!E33),0, 'H8 Sch 8 CCA Hist'!G33) -> 3247490 | F31: 47566 | G31: 47566 | L31: 3295056 | M31: 0 | N31: 47566 | O31: 0 | P31: 0 | Q31: 0 | R31: 0.3 | U31: 988516.8 | W31: 2306539.2 | X31: T8
B32: =IF(ISBLANK('H8 Sch 8 CCA Hist'!C34), "", 'H8 Sch 8 CCA Hist'!C34) -> 47 | C32: =IF(ISBLANK('H8 Sch 8 CCA Hist'!D34), "", 'H8 Sch 8 CCA Hist'!D34) -> Distribution System (acq'd post Feb 22/05) | D32: H8 | E32: =IF(ISBLANK('H8 Sch 8 CCA Hist'!E34),0, 'H8 Sch 8 CCA Hist'!G34) -> 3057388643 | F32: =463207104+3427811 -> 466634915 | G32: =462184059+3427811 -> 465611870 | L32: 3524023558 | M32: 0 | N32: 465611870 | O32: 0 | P32: 0 | Q32: 511522.5 | R32: 0.08 | U32: 281880962.8 | W32: 3242142595 | X32: T8
B33: =IF(ISBLANK('H8 Sch 8 CCA Hist'!C35), "", 'H8 Sch 8 CCA Hist'!C35) -> 50 | C33: =IF(ISBLANK('H8 Sch 8 CCA Hist'!D35), "", 'H8 Sch 8 CCA Hist'!D35) -> General Purpose Computer Hardware & Software (acq'd post Mar 18/07) | D33: H8 | E33: =IF(ISBLANK('H8 Sch 8 CCA Hist'!E35),0, 'H8 Sch 8 CCA Hist'!G35) -> 5626504 | F33: 19991903 | G33: 19973828 | L33: 25618407 | M33: 0 | N33: 19973828 | O33: 0 | P33: 0 | Q33: 9037.5 | R33: 0.55 | U33: 14085153.23 | W33: 11533253.77 | X33: T8
B34: =IF(ISBLANK('H8 Sch 8 CCA Hist'!C36), "", 'H8 Sch 8 CCA Hist'!C36) -> 95 | C34: =IF(ISBLANK('H8 Sch 8 CCA Hist'!D36), "", 'H8 Sch 8 CCA Hist'!D36) -> CWIP | D34: H8 | E34: =IF(ISBLANK('H8 Sch 8 CCA Hist'!E36),0, 'H8 Sch 8 CCA Hist'!G36) -> 468232562 | L34: 468232562 | M34: 0 | N34: 0 | O34: 0 | P34: 0 | Q34: 0 | R34: 0 | U34: 0 | W34: 468232562 | X34: T8
B35: 54 | C35: Zero-Emission Vehicles | D35: H8 | E35: =IF(ISBLANK('H8 Sch 8 CCA Hist'!E37),0, 'H8 Sch 8 CCA Hist'!G37) -> 0 | F35: 2605865 | G35: 2605865 | L35: 2605865 | M35: 0 | N35: 2605865 | O35: 1.5 | P35: 3908797.5 | Q35: 0 | R35: 0.3 | U35: 1954398.75 | W35: 651466.25 | X35: T8
B36: =IF(ISBLANK('H8 Sch 8 CCA Hist'!C38), "", 'H8 Sch 8 CCA Hist'!C38) ->  | C36: =IF(ISBLANK('H8 Sch 8 CCA Hist'!D38), "", 'H8 Sch 8 CCA Hist'!D38) ->  | D36: H8 | E36: =IF(ISBLANK('H8 Sch 8 CCA Hist'!E38),0, 'H8 Sch 8 CCA Hist'!G38) -> 0 | L36: 0 | M36: 0 | N36: 0 | P36: 0 | Q36: 0 | W36: 0 | X36: T8
B37: =IF(ISBLANK('H8 Sch 8 CCA Hist'!C39), "", 'H8 Sch 8 CCA Hist'!C39) ->  | C37: =IF(ISBLANK('H8 Sch 8 CCA Hist'!D39), "", 'H8 Sch 8 CCA Hist'!D39) ->  | D37: H8 | E37: =IF(ISBLANK('H8 Sch 8 CCA Hist'!E39),0, 'H8 Sch 8 CCA Hist'!G39) -> 0 | L37: 0 | M37: 0 | N37: 0 | P37: 0 | Q37: 0 | W37: 0 | X37: T8
B38: =IF(ISBLANK('H8 Sch 8 CCA Hist'!C40), "", 'H8 Sch 8 CCA Hist'!C40) ->  | C38: =IF(ISBLANK('H8 Sch 8 CCA Hist'!D40), "", 'H8 Sch 8 CCA Hist'!D40) ->  | D38: H8 | E38: =IF(ISBLANK('H8 Sch 8 CCA Hist'!E40),0, 'H8 Sch 8 CCA Hist'!G40) -> 0 | L38: 0 | M38: 0 | N38: 0 | P38: 0 | Q38: 0 | W38: 0 | X38: T8
B39: =IF(ISBLANK('H8 Sch 8 CCA Hist'!C41), "", 'H8 Sch 8 CCA Hist'!C41) ->  | C39: =IF(ISBLANK('H8 Sch 8 CCA Hist'!D41), "", 'H8 Sch 8 CCA Hist'!D41) ->  | D39: H8 | E39: =IF(ISBLANK('H8 Sch 8 CCA Hist'!E41),0, 'H8 Sch 8 CCA Hist'!G41) -> 0 | L39: 0 | M39: 0 | N39: 0 | P39: 0 | Q39: 0 | W39: 0 | X39: T8
B40: =IF(ISBLANK('H8 Sch 8 CCA Hist'!C42), "", 'H8 Sch 8 CCA Hist'!C42) ->  | C40: =IF(ISBLANK('H8 Sch 8 CCA Hist'!D42), "", 'H8 Sch 8 CCA Hist'!D42) ->  | D40: H8 | E40: =IF(ISBLANK('H8 Sch 8 CCA Hist'!E42),0, 'H8 Sch 8 CCA Hist'!G42) -> 0 | L40: 0 | M40: 0 | N40: 0 | P40: 0 | Q40: 0 | W40: 0 | X40: T8
B41: =IF(ISBLANK('H8 Sch 8 CCA Hist'!C43), "", 'H8 Sch 8 CCA Hist'!C43) ->  | C41: =IF(ISBLANK('H8 Sch 8 CCA Hist'!D43), "", 'H8 Sch 8 CCA Hist'!D43) ->  | D41: H8 | E41: =IF(ISBLANK('H8 Sch 8 CCA Hist'!E43),0, 'H8 Sch 8 CCA Hist'!G43) -> 0 | L41: 0 | M41: 0 | N41: 0 | P41: 0 | Q41: 0 | W41: 0 | X41: T8
B42: =IF(ISBLANK('H8 Sch 8 CCA Hist'!C44), "", 'H8 Sch 8 CCA Hist'!C44) ->  | C42: =IF(ISBLANK('H8 Sch 8 CCA Hist'!D44), "", 'H8 Sch 8 CCA Hist'!D44) ->  | D42: H8 | E42: =IF(ISBLANK('H8 Sch 8 CCA Hist'!E44),0, 'H8 Sch 8 CCA Hist'!G44) -> 0 | L42: =IFERROR(E42+F42+H42-K42,"") -> 0 | M42: 0 | N42: 0 | P42: 0 | Q42: 0 | W42: 0 | X42: T8
C43: TOTALS | E43: =SUM(E10:E42) -> 4857159337 | F43: =SUM(F10:F42) -> 591256223 | G43: =SUM(G10:G42) -> 590103819 | H43: 0 | I43: 0 | J43: 0 | K43: 0 | L43: =SUM(L10:L42) -> 5448415560 | M43: =SUM(M10:M42) -> 0 | N43: =SUM(N10:N42) -> 590103819 | P43: 7443730 | Q43: 576202 | S43: =SUM(S10:S42) -> 0 | T43: =SUM(T10:T42) -> 0 | U43: =SUM(U10:U42) -> 431768195.8 | V43: B1 | W43: =SUM(W10:W42) -> 5016647364
B45: For additional details and guidance on calculating amounts in Schedule 8, refer to the notes to the Canada Revenue Agency published Schedule 8 - Capital Cost Allowance (CCA) (2018 and later tax years):
B46: https://www.canada.ca/content/dam/cra-arc/formspubs/pbg/t2sch8/t2sch8-19e.pdf

Sheet B13 Sch 13 Reserves Bridge
C7: Schedule 13 Tax Reserves - Bridge Year
C9: Continuity of Reserves
I10: Bridge Year Adjustments
C11: Description | D11: Reference | E11: Historical Utility Only | F11: Eliminate Amounts Not Relevant for Bridge Year | G11: Adjusted Utility Balance | I11: Additions | J11: Disposals | K11: Balance for Bridge Year | M11: Change During the Year | N11: Disallowed Expenses
C13: Capital gains reserves ss.40(1) | D13: H13 | E13: ='H13 Sch 13 Reserves Hist'!F15 -> 0 | G13: =SUM(E13:F13) -> 0 | K13: =G13+I13-J13 -> 0 | L13: T13 | M13: =+K13-G13 -> 0
C14: Tax Reserves Not Deducted for Accounting Purposes
C15: Reserve for doubtful accounts ss. 20(1)(l) | D15: H13 | E15: ='H13 Sch 13 Reserves Hist'!F17 -> 0 | G15: =SUM(E15:F15) -> 0 | K15: =G15+I15-J15 -> 0 | L15: T13 | M15: =+K15-G15 -> 0
C16: Reserve for goods and services not delivered ss. 20(1)(m) | D16: H13 | E16: ='H13 Sch 13 Reserves Hist'!F18 -> 0 | G16: 0 | K16: 0 | L16: T13 | M16: 0
C17: Reserve for unpaid amounts ss. 20(1)(n) | D17: H13 | E17: ='H13 Sch 13 Reserves Hist'!F19 -> 0 | G17: 0 | K17: 0 | L17: T13 | M17: 0
C18: Debt & share issue expenses ss. 20(1)(e) | D18: H13 | E18: ='H13 Sch 13 Reserves Hist'!F20 -> 0 | G18: 0 | K18: 0 | L18: T13 | M18: 0
C19: Other tax reserves | D19: H13 | E19: ='H13 Sch 13 Reserves Hist'!F21 -> 0 | G19: 0 | K19: 0 | L19: T13 | M19: 0
E20: ='H13 Sch 13 Reserves Hist'!F25 -> 0 | G20: 0 | K20: 0 | M20: 0
E21: ='H13 Sch 13 Reserves Hist'!F26 -> 0 | G21: 0 | K21: 0 | M21: 0
C22: Total | E22: =SUM(E15:E21) -> 0 | F22: 0 | G22: 0 | H22: B1 | I22: 0 | J22: 0 | K22: 0 | L22: B1 | M22: 0 | N22: 0
E23: 0
C24: Financial statement reserves (not deductible for tax purposes)
C25: General Reserve for Inventory Obsolescence (non-specific) | D25: H13 | E25: ='H13 Sch 13 Reserves Hist'!F30 -> 0 | G25: =SUM(E25:F25) -> 0 | K25: =G25+I25-J25 -> 0 | L25: T13 | M25: =+K25-G25 -> 0
C26: General Reserve for Bad Debts | D26: H13 | E26: ='H13 Sch 13 Reserves Hist'!F31 -> 0 | G26: 0 | K26: 0 | L26: T13 | M26: 0
C27: Accrued Employee Future Benefits: | D27: H13 | E27: ='H13 Sch 13 Reserves Hist'!F32 -> 0 | G27: 0 | K27: 0 | L27: T13 | M27: 0
C28: - Medical and Life Insurance | D28: H13 | E28: ='H13 Sch 13 Reserves Hist'!F33 -> 0 | G28: 0 | K28: 0 | L28: T13 | M28: 0
C29: - Short & Long-term Disability | D29: H13 | E29: ='H13 Sch 13 Reserves Hist'!F34 -> 0 | G29: 0 | K29: 0 | L29: T13 | M29: 0
C30: - Accumulated Sick Leave | D30: H13 | E30: ='H13 Sch 13 Reserves Hist'!F35 -> 0 | G30: 0 | K30: 0 | L30: T13 | M30: 0
C31: - Termination Cost | D31: H13 | E31: ='H13 Sch 13 Reserves Hist'!F36 -> 4470180 | G31: 4470180 | J31: 641917 | K31: 3828263 | L31: T13 | M31: -641917
C32: - Other Post-Employment Benefits | D32: H13 | E32: ='H13 Sch 13 Reserves Hist'!F37 -> 230791000 | G32: 230791000 | I32: =232739000-230791000 -> 1948000 | K32: 232739000 | L32: T13 | M32: 1948000
C33: Provision for Environmental Costs | D33: H13 | E33: ='H13 Sch 13 Reserves Hist'!F38 -> 0 | G33: 0 | K33: 0 | L33: T13 | M33: 0
C34: Restructuring Costs | D34: H13 | E34: ='H13 Sch 13 Reserves Hist'!F39 -> 0 | G34: 0 | K34: 0 | L34: T13 | M34: 0
C35: Accrued Contingent Litigation Costs | D35: H13 | E35: ='H13 Sch 13 Reserves Hist'!F40 -> 0 | G35: 0 | K35: 0 | L35: T13 | M35: 0
C36: Accrued Self-Insurance Costs | D36: H13 | E36: ='H13 Sch 13 Reserves Hist'!F41 -> 0 | G36: 0 | K36: 0 | L36: T13 | M36: 0
C37: Other Contingent Liabilities | D37: H13 | E37: ='H13 Sch 13 Reserves Hist'!F42 -> 0 | G37: 0 | K37: 0 | L37: T13 | M37: 0
C38: Bonuses Accrued and Not Paid Within 180 Days of Year-End ss. 78(4) | D38: H13 | E38: ='H13 Sch 13 Reserves Hist'!F43 -> 0 | G38: 0 | K38: 0 | L38: T13 | M38: 0
C39: Unpaid Amounts to Related Person and Not Paid Within 3 Taxation Years ss. 78(1) | D39: H13 | E39: ='H13 Sch 13 Reserves Hist'!F44 -> 0 | G39: 0 | K39: 0 | L39: T13 | M39: 0
C40: Other | D40: H13 | E40: ='H13 Sch 13 Reserves Hist'!F45 -> 0 | G40: 0 | K40: 0 | L40: T13 | M40: 0
E41: ='H13 Sch 13 Reserves Hist'!F49 -> 0 | G41: =SUM(E41:F41) -> 0 | K41: 0 | M41: =+K41-G41 -> 0
E42: ='H13 Sch 13 Reserves Hist'!F50 -> 0 | G42: =SUM(E42:F42) -> 0 | K42: 0 | M42: =+K42-G42 -> 0
C43: Total | E43: =SUM(E25:E42) -> 235261180 | F43: =SUM(F25:F42) -> 0 | G43: 235261180 | H43: B1 | I43: 1948000 | J43: 641917 | K43: 236567263 | L43: B1 | M43: 1306083 | N43: 0
E44: 0

Sheet T0 PILs,Tax Provision Test
T1: Rate Base | U1: Federal Tax Rate
T2: 500000 | U2: 0.11
T3: 10000000 | U3: 0.11
T4: =T3+100000 -> 10100000 | U4: 0.11
T5: =T4+100000 -> 10200000 | U5: 0.11
B6: PILs Tax Provision - Test Year | T6: 10300000 | U6: 0.11
T7: 10400000 | U7: 0.11
J8: Wires Only | T8: 10500000 | U8: 0.11
T9: 10600000 | U9: 0.11
C10: Regulatory Taxable Income | I10: T1 | J10: ='T1 Sch 1 Taxable Income Test'!F122 -> 77254374.36 | K10: A | T10: 10700000 | U10: 0.11
T11: 10800000 | U11: 0.11
D12: Tax Rate | E12: Small Business Rate (If Applicable) | F12: Taxes Payable | G12: Effective Tax Rate
C13: Ontario (Max 11.5%) | D13: 0.115 | E13: =IF(ratebase<=10000000, ontario_SB, IF(ratebase>=50000000, ontariotax, IF(AND(ratebase>10000000, ratebase<50000000), ontario_SB+ (ratebase - 10000000)*(ontariotax - ontario_SB)/(50000000-10000000)))) -> 0.115 | F13: =IF(J10<500000,J10,500000)*E13+IF(J10>500000,J10-500000,0)*D13 -> 8884253.051 | G13: =IF(F13=0,0,+F13/J10) -> 0.115 | H13: B
C14: Federal (Max 15%) | D14: 0.15 | E14: =IF(ratebase<=10000000, Fed_SB_Test, IF(ratebase>=50000000, FedTax, IF(AND(ratebase>10000000, ratebase<50000000), Fed_SB_Test+ (ratebase - 10000000)*(FedTax -Fed_SB_Test)/(50000000-10000000)))) -> 0.15 | F14: =E14*IF(J10<500000,J10,500000)+IF(J10>500000,J10-500000,0)*D14 -> 11588156.15 | G14: =IF(F14=0,0,+F14/J10) -> 0.15 | H14: C
C16: Combined effective tax rate (Max 26.5%) | J16: =SUM(G13:G14) -> 0.265 | K16: D = B + C | T16: =#REF!+100000 ->  | U16: =#REF!+0.112% -> 
U17: =U16+0.112% -> 
C19: Total Income Taxes | J19: =J10*J16 -> 20472409.2 | K19: E = A * D
U20: =U19+0.102% -> 
C21: Investment Tax Credits | J21: 1503000 | K21: F | U21: =U20+0.102% -> 
C22: Miscellaneous Tax Credits | J22: 933000 | K22: G | U22: =U21+0.102% -> 
C23: Total Tax Credits | J23: =SUM(J21:J22) -> 2436000 | K23: H = F + G | U23: =U22+0.102% -> 
U24: =U23+0.102% -> 
C25: Corporate PILs/Income Tax Provision for Test Year | J25: =IF(J19-J23<0,0,J19-J23) -> 18036409.2 | K25: I = E - H | L25: S. Summary | U25: =U24+0.096% -> 
U26: =U25+0.096% -> 
C27: Corporate PILs/Income Tax Provision Gross Up 1 | H27: =(1-J16) -> 0.735 | I27: J = 1-D | J27: =J25/H27-J25 -> 6502923.047 | K27: K = I/J-I | U27: =U26+0.096% -> 
U28: =U27+0.096% -> 
U29: =U28+0.096% -> 
C30: Income Tax (grossed-up) before tax credits reclass to OM&A | J30: =J25+J27 -> 24539332.25 | K30: L = K + I | L30: S. Summary
C31: Tax credits reclass to OM&A | J31: 2457000 | K31: M | L31: S. Summary
C32: Tax credits reclass to OM&A - gross up | H32: =(1-J16) -> 0.735 | I32: J = 1-D | J32: =J31/H32-J31 -> 885857.1429 | K32: N | L32: S. Summary
C33: Income Tax (grossed-up) after tax credits reclass to OM&A | J33: =+J30+J31+J32 -> 27882189.39 | K33: O = L + M + N | L33: S. Summary | T33: =T29+100000 ->  | U33: =U29+0.088% -> 
U34: =U33+0.088% -> 
U35: =U34+0.088% -> 
C36: Note: | U36: =U35+0.088% -> 
C37: 1. This is for the derivation of revenue requirement and should not be used for sufficiency/deficiency calculations. | U37: =U36+0.088% -> 
U38: =U37+0.082% -> 
U39: =U38+0.082% -> 
U40: =U39+0.082% -> 
U41: =U40+0.082% -> 
U42: =U41+0.082% -> 
U43: =U42+0.076% -> 
U44: =U43+0.076% -> 
U45: =U44+0.076% -> 
U46: =U45+0.076% -> 
U47: 0.15

Sheet T1 Sch 1 Taxable Income Test
C10: Taxable Income - Test Year
E11: Working Paper Reference | F11: Test Year Taxable Income
C12: Net Income Before Taxes | E12: A. | F12: ='A. Data Input Sheet'!G18 -> 220941976.4
D14: T2 S1 line #
C15: Additions:
C16: Interest and penalties on taxes | D16: 103
C17: Amortization of tangible assets 2-4 ADJUSTED ACCOUNTING DATA P489 | D17: 104 | F17: 285335169.3
C18: Amortization of intangible assets 2-4 ADJUSTED ACCOUNTING DATA P490 | D18: 106
C19: Recapture of capital cost allowance from Schedule 8 | D19: 107 | E19: T8 | F19: ='T8 Sch 8 CCA Test'!Y44 -> 0
C20: Income inclusion under subparagraph 13(38)(d)(iii) from Schedule 10 | D20: 108
C21: Loss in equity of subsidiaries and affiliates | D21: 110
C22: Loss on disposal of assets | D22: 111
C23: Charitable donations | D23: 112
C24: Taxable Capital Gains | D24: 113
C25: Political Donations | D25: 114
C26: Deferred and prepaid expenses | D26: 116
C27: Scientific research expenditures deducted on financial statements | D27: 118
C28: Capitalized interest | D28: 119
C29: Non-deductible club dues and fees | D29: 120 | F29: 340000
C30: Non-deductible meals and entertainment expense | D30: 121 | F30: 27000
C31: Non-deductible automobile expenses | D31: 122
C32: Non-deductible life insurance premiums | D32: 123
C33: Non-deductible company pension plans | D33: 124
C34: Tax reserves beginning of year | D34: 125 | E34: T13 | F34: ='T13 Sch 13 Reserves Test'!G22 -> 0
C35: Reserves from financial statements- balance at end of year | D35: 126 | E35: T13 | F35: ='T13 Sch 13 Reserves Test'!K43 -> 236852664
C36: Soft costs on construction and renovation of buildings | D36: 127
C37: Book loss on joint ventures or partnerships | D37: 205
C38: Capital items expensed | D38: 206
C39: Debt issue expense | D39: 208
C40: Development expenses claimed in current year | D40: 212
C41: Financing fees deducted in books | D41: 216 | F41: 1377925
C42: Gain on settlement of debt | D42: 220
C43: Non-deductible advertising | D43: 226
C44: Non-deductible interest | D44: 227
C45: Non-deductible legal and accounting fees | D45: 228
C46: Recapture of SR&ED expenditures | D46: 231
C47: Share issue expense | D47: 235
C48: Write down of capital property | D48: 236
C49: Amounts received in respect of qualifying environment trust per paragraphs 12(1)(z.1) and 12(1)(z.2) | D49: 237
C50: Other Additions
C51: Interest Expensed on Capital Leases | D51: 295 | F51: 1400
C52: Realized Income from Deferred Credit Accounts | D52: 295
C53: Pensions | D53: 295
C54: Non-deductible penalties | D54: 295
D55: 295
D56: 295
D57: 295
D58: 295
C59: ARO Accretion expense | F59: 637
C60: Capital Contributions Received (ITA 12(1)(x)) | F60: 111301200
C61: Lease Inducements Received (ITA 12(1)(x))
C62: Deferred Revenue (ITA 12(1)(a)) | F62: 3061822
C63: Prior Year Investment Tax Credits received | F63: 2436000
C74: Total Additions | F74: =SUM(F16:F73) -> 640733817.3
C75: Deductions:
C76: Gain on disposal of assets per financial statements | D76: 401
C77: Dividends not taxable under section 83 | D77: 402
C78: Capital cost allowance from Schedule 8 | D78: 403 | E78: T8 | F78: ='T8 Sch 8 CCA Test'!AA44 -> 424007898.4
C79: Terminal loss from Schedule 8 | D79: 404 | E79: T8 | F79: ='T8 Sch 8 CCA Test'!Z44 -> 0
C80: Allowable business investment loss | D80: 406
C81: Deferred and prepaid expenses | D81: 409
C82: Scientific research expenses claimed in year | D82: 411
C83: Tax reserves end of year | D83: 413 | E83: T13 | F83: ='T13 Sch 13 Reserves Test'!K22 -> 0
C84: Reserves from financial statements - balance at beginning of year | D84: 414 | E84: T13 | F84: ='T13 Sch 13 Reserves Test'!G43 -> 236567263
C85: Contributions to deferred income plans | D85: 416
C86: Book income of joint venture or partnership | D86: 305
C87: Equity in income from subsidiary or affiliates | D87: 306
C88: Other deductions
C89: Interest capitalized for accounting deducted for tax | D89: 395
C90: Capital Lease Payments | D90: 395 | F90: 49478
C91: Non-taxable imputed interest income on deferral and variance accounts | D91: 395
D92: 395
D93: 395
D94: 395
D95: 395
D96: 395
C97: ARO Payments - Deductible for Tax when Paid | F97: 37815
C98: ITA 13(7.4) Election - Capital Contributions Received | F98: =+F60 -> 111301200
C99: ITA 13(7.4) Election - Apply Lease Inducement to cost of Leaseholds
C100: Deferred Revenue - ITA 20(1)(m) reserve | F100: =+F62 -> 3061822
C101: Principal portion of lease payments
C102: Lease Inducement Book Amortization credit to income
C103: Financing fees for tax ITA 20(1)(e) and (e.1) | F103: 2484627
C104: Land Lease payment capitalized for accounting | F104: 89423
C105: Other Post-Employment Benefits adjustment - change in balance with no Income Statement Impact | F105: 343509
C106: Other Post-Employment Benefits adjustment - current yar capitalized portion with no Income Statement Impact | F106: 6478383.865
C112: Total Deductions | E112: calculated | F112: =SUM(F76:F111) -> 784421419.3
C114: NET INCOME FOR TAX PURPOSES | E114: calculated | F114: =SUM(F12,F74)-F112 -> 77254374.36
C116: Charitable donations | D116: 311
C117: Taxable dividends received under section 112 or 113 | D117: 320
C118: Non-capital losses of previous tax years from Schedule 4 | D118: 331 | E118: T4 | F118: ='T4 Sch 4 Loss Cfwd Test'!I15 -> 0
C119: Net capital losses of previous tax years from Schedule 4 | D119: 332 | E119: T4 | F119: ='T4 Sch 4 Loss Cfwd Test'!I25 -> 0
C120: Limited partnership losses of previous tax years from Schedule 4 | D120: 335
C122: REGULATORY TAXABLE INCOME | E122: calculated | F122: =IF(F114<0,F114,F114-SUM(F116:F121)) -> 77254374.36 | G122: T0

Sheet T4 Sch 4 Loss Cfwd Test
C7: Schedule 4 Loss Carry Forward - Test Year
C9: Corporation Loss Continuity and Application
C11: Non-Capital Loss Carry Forward Deduction | F11: Working Paper Reference | G11: Total | H11: Non-Distribution Portion | I11: Utility Balance
C12: Actual/Estimated Bridge Year Carried Forward | F12: B4 | G12: ='B4 Sch 4 Loss Cfwd Bridge'!G16 -> 0 | I12: =G12-H12 -> 0
C13: Amount to be used in Test Year and Price Cap Years | F13: T1 | G13: =IF('T1 Sch 1 Taxable Income Test'!F114<0,0,IF('T1 Sch 1 Taxable Income Test'!F114>G12,G12,'T1 Sch 1 Taxable Income Test'!F114)) -> 0 | I13: =G13-H13 -> 0
C14: Number of years loss until next cost of service (i.e. years the loss is to be spread over)
C15: Amount to be used in Test Year | F15: calculated | G15: =IF(ISERROR(G13/G14),G13,G13/G14) -> 0 | I15: =G15-H15 -> 0
C16: Loss Carry Forward Generated in Test Year (if any) | F16: T1 | G16: =IF('T1 Sch 1 Taxable Income Test'!F114<0,'T1 Sch 1 Taxable Income Test'!F114*-1,0) -> 0 | I16: =G16-H16 -> 0
C17: Other Adjustments | I17: =G17-H17 -> 0
C18: Balance available for use in Future Years | F18: calculated | G18: =G12-G13+G16+G17 -> 0 | I18: =G18-H18 -> 0
C21: Net Capital Loss Carry Forward Deduction | G21: Total | H21: Non-Distribution Portion | I21: Utility Balance
C22: Actual/Estimated Bridge Year Carried Forward | F22: B4 | G22: ='B4 Sch 4 Loss Cfwd Bridge'!G23 -> 0 | I22: =G22-H22 -> 0
C23: Amount to be used in Test Year and Price Cap Years | I23: =G23-H23 -> 0
C24: Number of years loss until next cost of service (i.e. years the loss is to be spread over)
C25: Amount to be used in Test Year | F25: T1 | G25: =IF(ISERROR(G23/G24),G23,G23/G24) -> 0 | I25: =G25-H25 -> 0
C26: Loss Carry Forward Generated in Test Year (if any) | I26: =G26-H26 -> 0
C27: Other Adjustments | I27: =G27-H27 -> 0
C28: Balance available for use in Future Years | G28: =G22-G23+G26+G27 -> 0 | I28: =G28-H28 -> 0

Sheet T8 Sch 8 CCA Test
B7: Schedule 8 CCA - Test Year
B9: (1) Class | C9: Class Description | D9: Working Paper Reference | E9: (2) Undepreciated capital cost (UCC) at the beginning of the test year | F9: (3) Cost of acquisitions during the year (new property must be available for use, except CWIP) | G9: (4) Cost of acquisitions from column 3 that are accelerated investment incentive property (AIIP) | H9: (5) Adjustments and transfers (enter amounts that will reduce the UCC as negatives) | I9: (6) Amount from column 5 that is assistance received or receivable during the year for a property, subsequent to its disposition | J9: (7) Amount from column 5 that is repaid during the year for a property, subsequent to its disposition | K9: (8) Proceeds of dispositions | L9: (9) Proceeds of dispositions of the DIEP (enter amount from column 8 that relates to the DIEP reported in column 4) | M9: (10) UCC (column 2 plus column 3 plus or minus column 5 minus column 8) | N9: (11) UCC of the DIEP (enter the UCC amount that relates to the DIEP reported in column 4) | O9: (12) Immediate expensing | P9: (13) Cost of acquisitions on remainder of Class (column 3 minus column 4 plus column 11 minus column 12) | Q9: (14) Cost of acquisitions from column 13 that are accelerated investment incentive properties (AIIP) or properties included in Classes 54 to 56 | R9: (15) Remaining UCC (column 10 minus column 12) (if negative, enter "0") | S9: (16) Proceeds of disposition available to reduce the UCC of AIIP and property included in Classes 54 to 56 (column 8 minus column 9 plus column 6 minus column 13 plus column 14 minus column 7) (if negative, enter "0") | T9: (17) Net capital cost additions of AIIP acquired during the year (column 4 minus column 10) (if negative, enter "0") | U9: Relevant factor | V9: (18) UCC adjustment for AIIP and property included in Classes 54 to 56 acquired during the year (column 17 multiplied by the relevant factor) | W9: (19) UCC adjustment for non-AIIP and property included in Classes 54 to 56 (0.5 multiplied by the result of column 13 minus column 14 minus column 6 plus column 7 minus column 8 plus column 9) (if negative, enter "0") | X9: (20) CCA Rate % | Y9: (21) Recapture of CCA | Z9: (22) Terminal Loss | AA9: (23) CCA (for declining balance method, the result of column 15 plus column 18 minus column 19, multiplied by column 20 or a lower amount, plus column 12)) | AB9: (24) UCC at the end of the test year (column 10 minus column 23)
B10: =IF(ISBLANK('B8 Sch 8 CCA Bridge'!B10), "", 'B8 Sch 8 CCA Bridge'!B10) -> 1 | C10: =IF(ISBLANK('B8 Sch 8 CCA Bridge'!C10), "", 'B8 Sch 8 CCA Bridge'!C10) -> Buildings, Distribution System (acq'd post 1987) | D10: B8 | E10: =IF(ISBLANK('B8 Sch 8 CCA Bridge'!W10), "", 'B8 Sch 8 CCA Bridge'!W10) -> 902016849.9 | F10: 17945572 | G10: 17930676 | L10: =IF(G10<>0,K10,0) -> 0 | M10: =IFERROR(E10+F10+H10-K10,0) -> 919962421.9 | N10: =IF(G10<>0,G10,0) -> 17930676 | P10: =+F10-G10+N10-O10 -> 17945572 | Q10: =IF(L10=0,G10-L10,0) -> 17930676 | R10: =IF((M10-O10)<0,0,M10-O10) -> 919962421.9 | S10: =IF((K10-L10+I10-P10+Q10-J10)<0,0,(K10-L10+I10-P10+Q10-J10)) -> 0 | T10: =IF((G10-S10)<0,0,(G10-S10)) -> 17930676 | U10: 0 | V10: =T10*U10 -> 0 | W10: =IF((0.5*(P10-Q10-I10+J10-K10))<0,0,(0.5*(P10-Q10-I10+J10-K10))) -> 7448 | X10: 0.04 | AA10: =IF(OR(R10<0,Y10>0),0,(R10+V10-W10)*X10) -> 36798198.96 | AB10: =IF(M10<0,0,M10-Z10-AA10) -> 883164223
B11: =IF(ISBLANK('B8 Sch 8 CCA Bridge'!B11), "", 'B8 Sch 8 CCA Bridge'!B11) -> 1b | C11: =IF(ISBLANK('B8 Sch 8 CCA Bridge'!C11), "", 'B8 Sch 8 CCA Bridge'!C11) -> Non-Residential Buildings [Reg. 1100(1)(a.1) election] | D11: B8 | E11: =IF(ISBLANK('B8 Sch 8 CCA Bridge'!W11), "", 'B8 Sch 8 CCA Bridge'!W11) -> 0 | L11: =IF(G11<>0,K11,0) -> 0 | M11: =IFERROR(E11+F11+H11-K11,"") -> 0 | N11: =IF(G11<>0,G11,0) -> 0 | P11: =+F11-G11+N11-O11 -> 0 | Q11: =IF(L11=0,G11-L11,0) -> 0 | R11: =IF((M11-O11)<0,0,M11-O11) -> 0 | S11: =IF((K11-L11+I11-P11+Q11-J11)<0,0,(K11-L11+I11-P11+Q11-J11)) -> 0 | T11: =IF((G11-S11)<0,0,(G11-S11)) -> 0 | U11: 0 | V11: =T11*U11 -> 0 | W11: =IF((0.5*(P11-Q11-I11+J11-K11))<0,0,(0.5*(P11-Q11-I11+J11-K11))) -> 0 | X11: 0.06 | AA11: =IF(OR(R11<0,Y11>0),0,(R11+V11-W11)*X11) -> 0 | AB11: =IF(M11<0,0,M11-Z11-AA11) -> 0
B12: =IF(ISBLANK('B8 Sch 8 CCA Bridge'!B12), "", 'B8 Sch 8 CCA Bridge'!B12) -> 2 | C12: =IF(ISBLANK('B8 Sch 8 CCA Bridge'!C12), "", 'B8 Sch 8 CCA Bridge'!C12) -> Distribution System (acq'd pre 1988) | D12: B8 | E12: =IF(ISBLANK('B8 Sch 8 CCA Bridge'!W12), "", 'B8 Sch 8 CCA Bridge'!W12) -> 156808476.3 | L12: 0 | M12: 156808476.3 | N12: 0 | P12: 0 | Q12: 0 | R12: 156808476.3 | S12: 0 | T12: 0 | V12: 0 | W12: 0 | X12: 0.06 | AA12: 9408508.579 | AB12: 147399967.7
B13: =IF(ISBLANK('B8 Sch 8 CCA Bridge'!B13), "", 'B8 Sch 8 CCA Bridge'!B13) -> 3 | C13: =IF(ISBLANK('B8 Sch 8 CCA Bridge'!C13), "", 'B8 Sch 8 CCA Bridge'!C13) -> Buildings (acq'd pre 1988) | D13: B8 | E13: =IF(ISBLANK('B8 Sch 8 CCA Bridge'!W13), "", 'B8 Sch 8 CCA Bridge'!W13) -> 0 | L13: 0 | M13: 0 | N13: 0 | P13: 0 | Q13: 0 | R13: 0 | S13: 0 | T13: 0 | V13: 0 | W13: 0 | X13: 0.05 | AA13: 0 | AB13: 0
B14: =IF(ISBLANK('B8 Sch 8 CCA Bridge'!B14), "", 'B8 Sch 8 CCA Bridge'!B14) -> 6 | C14: =IF(ISBLANK('B8 Sch 8 CCA Bridge'!C14), "", 'B8 Sch 8 CCA Bridge'!C14) -> Certain Buildings; Fences | D14: B8 | E14: =IF(ISBLANK('B8 Sch 8 CCA Bridge'!W14), "", 'B8 Sch 8 CCA Bridge'!W14) -> 1543846.5 | L14: 0 | M14: 1543846.5 | N14: 0 | P14: 0 | Q14: 0 | R14: 1543846.5 | S14: 0 | T14: 0 | U14: 0 | V14: 0 | W14: 0 | X14: 0.1 | AA14: 154384.65 | AB14: 1389461.85
B15: =IF(ISBLANK('B8 Sch 8 CCA Bridge'!B15), "", 'B8 Sch 8 CCA Bridge'!B15) -> 8 | C15: =IF(ISBLANK('B8 Sch 8 CCA Bridge'!C15), "", 'B8 Sch 8 CCA Bridge'!C15) -> General Office Equipment, Furniture, Fixtures | D15: B8 | E15: =IF(ISBLANK('B8 Sch 8 CCA Bridge'!W15), "", 'B8 Sch 8 CCA Bridge'!W15) -> 19968594.8 | F15: 4820722 | G15: 4793878 | L15: 0 | M15: 24789316.8 | N15: 4793878 | P15: 4820722 | Q15: 4793878 | R15: 24789316.8 | S15: 0 | T15: 4793878 | U15: 0 | V15: 0 | W15: 13422 | X15: 0.2 | AA15: 4955178.96 | AB15: 19834137.84
B16: =IF(ISBLANK('B8 Sch 8 CCA Bridge'!B16), "", 'B8 Sch 8 CCA Bridge'!B16) -> 10 | C16: =IF(ISBLANK('B8 Sch 8 CCA Bridge'!C16), "", 'B8 Sch 8 CCA Bridge'!C16) -> Motor Vehicles, Fleet | D16: B8 | E16: =IF(ISBLANK('B8 Sch 8 CCA Bridge'!W16), "", 'B8 Sch 8 CCA Bridge'!W16) -> 10043072.2 | F16: 6206321 | G16: 6206321 | L16: 0 | M16: 16249393.2 | N16: 6206321 | P16: 6206321 | Q16: 6206321 | R16: 16249393.2 | S16: 0 | T16: 6206321 | U16: 0 | V16: 0 | W16: 0 | X16: 0.3 | AA16: 4874817.96 | AB16: 11374575.24
B17: =IF(ISBLANK('B8 Sch 8 CCA Bridge'!B17), "", 'B8 Sch 8 CCA Bridge'!B17) -> 10.1 | C17: =IF(ISBLANK('B8 Sch 8 CCA Bridge'!C17), "", 'B8 Sch 8 CCA Bridge'!C17) -> Certain Automobiles | D17: B8 | E17: =IF(ISBLANK('B8 Sch 8 CCA Bridge'!W17), "", 'B8 Sch 8 CCA Bridge'!W17) -> 23992 | L17: 0 | M17: 23992 | N17: 0 | P17: 0 | Q17: 0 | R17: 23992 | S17: 0 | T17: 0 | U17: 0 | V17: 0 | W17: 0 | X17: 0.3 | AA17: =IF(OR(R17<0,Y17>0),0,(R17+V17-W17)*X17)+2 -> 7199.6 | AB17: 16792.4
B18: =IF(ISBLANK('B8 Sch 8 CCA Bridge'!B18), "", 'B8 Sch 8 CCA Bridge'!B18) -> 12 | C18: =IF(ISBLANK('B8 Sch 8 CCA Bridge'!C18), "", 'B8 Sch 8 CCA Bridge'!C18) -> Computer Application Software (Non-Systems) | D18: B8 | E18: =IF(ISBLANK('B8 Sch 8 CCA Bridge'!W18), "", 'B8 Sch 8 CCA Bridge'!W18) -> 34759.5 | F18: 28538425 | G18: 28468906 | L18: 0 | M18: 28573184.5 | N18: 28468906 | P18: 28538425 | Q18: 28468906 | R18: 28573184.5 | S18: 0 | T18: 28468906 | U18: 0 | V18: 0 | W18: 34759.5 | X18: 1 | AA18: 28538425 | AB18: 34759.5
B19: 13 1 | C19: =IF(ISBLANK('B8 Sch 8 CCA Bridge'!C19), "", 'B8 Sch 8 CCA Bridge'!C19) -> Lease # 1 | D19: B8 | E19: =IF(ISBLANK('B8 Sch 8 CCA Bridge'!W19), "", 'B8 Sch 8 CCA Bridge'!W19) -> 75713 | L19: 0 | M19: 75713 | N19: 0 | P19: 0 | Q19: 0 | R19: 75713 | S19: 0 | T19: 0 | U19: 0 | V19: 0 | W19: 0 | X19: NA | AA19: 21208.88889 | AB19: 54504.11111
B20: 13 2 | C20: =IF(ISBLANK('B8 Sch 8 CCA Bridge'!C20), "", 'B8 Sch 8 CCA Bridge'!C20) -> Lease # 2 | D20: B8 | E20: =IF(ISBLANK('B8 Sch 8 CCA Bridge'!W20), "", 'B8 Sch 8 CCA Bridge'!W20) -> 3626 | L20: 0 | M20: 3626 | N20: 0 | P20: 0 | Q20: 0 | R20: 3626 | S20: 0 | T20: 0 | U20: 0 | V20: 0 | W20: 0 | X20: NA | AA20: 3626 | AB20: 0
B21: 13 3 | C21: =IF(ISBLANK('B8 Sch 8 CCA Bridge'!C21), "", 'B8 Sch 8 CCA Bridge'!C21) -> Lease # 3 | D21: B8 | E21: =IF(ISBLANK('B8 Sch 8 CCA Bridge'!W21), "", 'B8 Sch 8 CCA Bridge'!W21) -> 5312 | L21: 0 | M21: 5312 | N21: 0 | P21: 0 | Q21: 0 | R21: 5312 | S21: 0 | T21: 0 | U21: 0 | V21: 0 | W21: 0 | X21: NA | AA21: 2124.8 | AB21: 3187.2
B22: 13 4 | C22: =IF(ISBLANK('B8 Sch 8 CCA Bridge'!C22), "", 'B8 Sch 8 CCA Bridge'!C22) -> Lease # 4 | D22: B8 | E22: =IF(ISBLANK('B8 Sch 8 CCA Bridge'!W22), "", 'B8 Sch 8 CCA Bridge'!W22) -> 7710 | L22: 0 | M22: 7710 | N22: 0 | P22: 0 | Q22: 0 | R22: 7710 | S22: 0 | T22: 0 | U22: 0 | V22: 0 | W22: 0 | X22: NA | AA22: 1927.4 | AB22: 5782.6
B23: 13 5 | C23: Lease # 5 | D23: B8 | E23: =IF(ISBLANK('B8 Sch 8 CCA Bridge'!W23), "", 'B8 Sch 8 CCA Bridge'!W23) -> 0 | F23: 7999 | G23: 7999 | L23: 0 | M23: =IFERROR(E23+F23+H23-K23,"") -> 7999 | N23: 7999 | P23: 7999 | Q23: 7999 | R23: 7999 | S23: 0 | T23: =IF((G23-S23)<0,0,(G23-S23)) -> 7999 | U23: 0 | V23: =T23*U23 -> 0 | W23: 0 | X23: NA | AA23: 1599.8 | AB23: 6399.2
B24: =IF(ISBLANK('B8 Sch 8 CCA Bridge'!B23), "", 'B8 Sch 8 CCA Bridge'!B23) -> 14 | C24: =IF(ISBLANK('B8 Sch 8 CCA Bridge'!C23), "", 'B8 Sch 8 CCA Bridge'!C23) -> Limited Period Patents, Franchises, Concessions or Licences | D24: B8 | E24: =IF(ISBLANK('B8 Sch 8 CCA Bridge'!W23), "", 'B8 Sch 8 CCA Bridge'!W23) -> 0 | L24: 0 | M24: 0 | N24: 0 | P24: 0 | Q24: 0 | R24: 0 | S24: 0 | T24: 0 | V24: 0 | W24: 0 | X24: NA | AB24: 0
B25: =IF(ISBLANK('B8 Sch 8 CCA Bridge'!B24), "", 'B8 Sch 8 CCA Bridge'!B24) -> 14.1 | C25: Eligible Capital Property (acq'd pre Jan 1, 2017) | D25: B8 | E25: =IF(ISBLANK('B8 Sch 8 CCA Bridge'!W24), "", 'B8 Sch 8 CCA Bridge'!W24) -> 28954054.56 | L25: 0 | M25: 28954054.56 | N25: 0 | P25: 0 | Q25: 0 | R25: 28954054.56 | S25: 0 | T25: 0 | U25: 0 | V25: 0 | W25: 0 | X25: 0.07 | AA25: 2026783.819 | AB25: 26927270.74
B26: =IF(ISBLANK('B8 Sch 8 CCA Bridge'!B25), "", 'B8 Sch 8 CCA Bridge'!B25) -> 14.1 | C26: Eligible Capital Property (acq'd post Jan 1, 2017) | D26: B8 | E26: =IF(ISBLANK('B8 Sch 8 CCA Bridge'!W25), "", 'B8 Sch 8 CCA Bridge'!W25) -> 143972295.8 | F26: 13566391 | G26: 13566391 | L26: 0 | M26: 157538686.8 | N26: 13566391 | P26: 13566391 | Q26: 13566391 | R26: 157538686.8 | S26: 0 | T26: 13566391 | U26: 0 | V26: 0 | W26: 0 | X26: 0.05 | AA26: 7876934.338 | AB26: 149661752.4
B27: =IF(ISBLANK('B8 Sch 8 CCA Bridge'!B26), "", 'B8 Sch 8 CCA Bridge'!B26) -> 17 | C27: =IF(ISBLANK('B8 Sch 8 CCA Bridge'!C26), "", 'B8 Sch 8 CCA Bridge'!C26) -> Elec. Generation Equip. (Non-Bldng, acq'd post Feb 27/00); Roads, Lots, Storage | D27: B8 | E27: =IF(ISBLANK('B8 Sch 8 CCA Bridge'!W26), "", 'B8 Sch 8 CCA Bridge'!W26) -> 18584703.8 | L27: 0 | M27: 18584703.8 | N27: 0 | P27: 0 | Q27: 0 | R27: 18584703.8 | S27: 0 | T27: 0 | U27: 0 | V27: 0 | W27: 0 | X27: 0.08 | AA27: 1486776.304 | AB27: 17097927.5
B28: =IF(ISBLANK('B8 Sch 8 CCA Bridge'!B27), "", 'B8 Sch 8 CCA Bridge'!B27) -> 42 | C28: =IF(ISBLANK('B8 Sch 8 CCA Bridge'!C27), "", 'B8 Sch 8 CCA Bridge'!C27) -> Fibre Optic Cable | D28: B8 | E28: =IF(ISBLANK('B8 Sch 8 CCA Bridge'!W27), "", 'B8 Sch 8 CCA Bridge'!W27) -> 8971574.22 | F28: 231487 | G28: 231462 | L28: 0 | M28: 9203061.22 | N28: 231462 | P28: 231487 | Q28: 231462 | R28: 9203061.22 | S28: 0 | T28: 231462 | U28: 0 | V28: 0 | W28: 12.5 | X28: 0.12 | AA28: 1104365.846 | AB28: 8098695.374
B29: =IF(ISBLANK('B8 Sch 8 CCA Bridge'!B28), "", 'B8 Sch 8 CCA Bridge'!B28) -> 43.1 | C29: =IF(ISBLANK('B8 Sch 8 CCA Bridge'!C28), "", 'B8 Sch 8 CCA Bridge'!C28) -> Certain Clean Energy/Energy-Efficient Generation Equipment | D29: B8 | E29: =IF(ISBLANK('B8 Sch 8 CCA Bridge'!W28), "", 'B8 Sch 8 CCA Bridge'!W28) -> 509660.6 | L29: 0 | M29: 509660.6 | N29: 0 | P29: 0 | Q29: 0 | R29: 509660.6 | S29: 0 | T29: 0 | U29: 1.5 | V29: 0 | W29: 0 | X29: 0.3 | AA29: 152898.18 | AB29: 356762.42
B30: =IF(ISBLANK('B8 Sch 8 CCA Bridge'!B29), "", 'B8 Sch 8 CCA Bridge'!B29) -> 43.2 | C30: =IF(ISBLANK('B8 Sch 8 CCA Bridge'!C29), "", 'B8 Sch 8 CCA Bridge'!C29) -> Certain Clean Energy/Energy-Efficient Generation Equipment | D30: B8 | E30: =IF(ISBLANK('B8 Sch 8 CCA Bridge'!W29), "", 'B8 Sch 8 CCA Bridge'!W29) -> 256592.75 | F30: 621891 | G30: 621891 | L30: 0 | M30: 878483.75 | N30: 621891 | P30: 621891 | Q30: 621891 | R30: 878483.75 | S30: 0 | T30: 621891 | U30: 0.5 | V30: 310945.5 | W30: 0 | X30: 0.5 | AA30: 594714.625 | AB30: 283769.125
B31: =IF(ISBLANK('B8 Sch 8 CCA Bridge'!B30), "", 'B8 Sch 8 CCA Bridge'!B30) -> 45 | C31: =IF(ISBLANK('B8 Sch 8 CCA Bridge'!C30), "", 'B8 Sch 8 CCA Bridge'!C30) -> Computers & System Software (acq'd post Mar 22/04 and pre Mar 19/07) | D31: B8 | E31: =IF(ISBLANK('B8 Sch 8 CCA Bridge'!W30), "", 'B8 Sch 8 CCA Bridge'!W30) -> 113.85 | L31: 0 | M31: 113.85 | N31: 0 | P31: 0 | Q31: 0 | R31: 113.85 | S31: 0 | T31: 0 | U31: 0 | V31: 0 | W31: 0 | X31: 0.45 | AA31: 51.2325 | AB31: 62.6175
B32: =IF(ISBLANK('B8 Sch 8 CCA Bridge'!B31), "", 'B8 Sch 8 CCA Bridge'!B31) -> 46 | C32: =IF(ISBLANK('B8 Sch 8 CCA Bridge'!C31), "", 'B8 Sch 8 CCA Bridge'!C31) -> Data Network Infrastructure Equipment (acq'd post Mar 22/04) | D32: B8 | E32: =IF(ISBLANK('B8 Sch 8 CCA Bridge'!W31), "", 'B8 Sch 8 CCA Bridge'!W31) -> 2306539.2 | F32: 88964 | G32: 88964 | L32: 0 | M32: 2395503.2 | N32: 88964 | P32: 88964 | Q32: 88964 | R32: 2395503.2 | S32: 0 | T32: 88964 | U32: 0 | V32: 0 | W32: 0 | X32: 0.3 | AA32: 718650.96 | AB32: 1676852.24
B33: =IF(ISBLANK('B8 Sch 8 CCA Bridge'!B32), "", 'B8 Sch 8 CCA Bridge'!B32) -> 47 | C33: =IF(ISBLANK('B8 Sch 8 CCA Bridge'!C32), "", 'B8 Sch 8 CCA Bridge'!C32) -> Distribution System (acq'd post Feb 22/05) | D33: B8 | E33: =IF(ISBLANK('B8 Sch 8 CCA Bridge'!W32), "", 'B8 Sch 8 CCA Bridge'!W32) -> 3242142595 | F33: =526895725+3837967 -> 530733692 | G33: =525872680+3837967 -> 529710647 | L33: 0 | M33: 3772876287 | N33: 529710647 | P33: 530733692 | Q33: 529710647 | R33: 3772876287 | S33: 0 | T33: 529710647 | U33: 0 | V33: 0 | W33: 511522.5 | X33: 0.08 | AA33: 301789181.2 | AB33: 3471087106
B34: =IF(ISBLANK('B8 Sch 8 CCA Bridge'!B33), "", 'B8 Sch 8 CCA Bridge'!B33) -> 50 | C34: =IF(ISBLANK('B8 Sch 8 CCA Bridge'!C33), "", 'B8 Sch 8 CCA Bridge'!C33) -> General Purpose Computer Hardware & Software (acq'd post Mar 18/07) | D34: B8 | E34: =IF(ISBLANK('B8 Sch 8 CCA Bridge'!W33), "", 'B8 Sch 8 CCA Bridge'!W33) -> 11533253.77 | F34: 26022526 | G34: 26004451 | L34: 0 | M34: 37555779.77 | N34: 26004451 | P34: 26022526 | Q34: 26004451 | R34: 37555779.77 | S34: 0 | T34: 26004451 | U34: 0 | V34: 0 | W34: 9037.5 | X34: 0.55 | AA34: 20650708.25 | AB34: 16905071.52
B35: =IF(ISBLANK('B8 Sch 8 CCA Bridge'!B34), "", 'B8 Sch 8 CCA Bridge'!B34) -> 95 | C35: =IF(ISBLANK('B8 Sch 8 CCA Bridge'!C34), "", 'B8 Sch 8 CCA Bridge'!C34) -> CWIP | D35: B8 | E35: =IF(ISBLANK('B8 Sch 8 CCA Bridge'!W34), "", 'B8 Sch 8 CCA Bridge'!W34) -> 468232562 | L35: 0 | M35: 468232562 | N35: 0 | P35: 0 | Q35: 0 | R35: 468232562 | S35: 0 | T35: 0 | U35: 0 | V35: 0 | W35: 0 | X35: 0 | AA35: 0 | AB35: 468232562
B36: =IF(ISBLANK('B8 Sch 8 CCA Bridge'!B35), "", 'B8 Sch 8 CCA Bridge'!B35) -> 54 | C36: =IF(ISBLANK('B8 Sch 8 CCA Bridge'!C35), "", 'B8 Sch 8 CCA Bridge'!C35) -> Zero-Emission Vehicles | D36: B8 | E36: =IF(ISBLANK('B8 Sch 8 CCA Bridge'!W35), "", 'B8 Sch 8 CCA Bridge'!W35) -> 651466.25 | F36: 3525591 | G36: 3525591 | L36: 0 | M36: 4177057.25 | N36: 3525591 | P36: 3525591 | Q36: 3525591 | R36: 4177057.25 | S36: 0 | T36: 3525591 | U36: 1.5 | V36: 5288386.5 | W36: 0 | X36: 0.3 | AA36: 2839633.125 | AB36: 1337424.125
B37: =IF(ISBLANK('B8 Sch 8 CCA Bridge'!B36), "", 'B8 Sch 8 CCA Bridge'!B36) ->  | C37: =IF(ISBLANK('B8 Sch 8 CCA Bridge'!C36), "", 'B8 Sch 8 CCA Bridge'!C36) ->  | D37: B8 | E37: =IF(ISBLANK('B8 Sch 8 CCA Bridge'!W36), "", 'B8 Sch 8 CCA Bridge'!W36) -> 0 | L37: 0 | M37: 0 | N37: 0 | P37: 0 | Q37: 0 | R37: 0 | S37: 0 | T37: 0 | V37: 0 | W37: 0 | AA37: 0 | AB37: 0
B38: =IF(ISBLANK('B8 Sch 8 CCA Bridge'!B37), "", 'B8 Sch 8 CCA Bridge'!B37) ->  | C38: =IF(ISBLANK('B8 Sch 8 CCA Bridge'!C37), "", 'B8 Sch 8 CCA Bridge'!C37) ->  | D38: B8 | E38: =IF(ISBLANK('B8 Sch 8 CCA Bridge'!W37), "", 'B8 Sch 8 CCA Bridge'!W37) -> 0 | L38: 0 | M38: 0 | N38: 0 | P38: 0 | Q38: 0 | R38: 0 | S38: 0 | T38: 0 | V38: 0 | W38: 0 | AA38: 0 | AB38: 0
B39: =IF(ISBLANK('B8 Sch 8 CCA Bridge'!B38), "", 'B8 Sch 8 CCA Bridge'!B38) ->  | C39: =IF(ISBLANK('B8 Sch 8 CCA Bridge'!C38), "", 'B8 Sch 8 CCA Bridge'!C38) ->  | D39: B8 | E39: =IF(ISBLANK('B8 Sch 8 CCA Bridge'!W38), "", 'B8 Sch 8 CCA Bridge'!W38) -> 0 | L39: 0 | M39: 0 | N39: 0 | P39: 0 | Q39: 0 | R39: 0 | S39: 0 | T39: 0 | V39: 0 | W39: 0 | AA39: 0 | AB39: 0
B40: =IF(ISBLANK('B8 Sch 8 CCA Bridge'!B39), "", 'B8 Sch 8 CCA Bridge'!B39) ->  | C40: =IF(ISBLANK('B8 Sch 8 CCA Bridge'!C39), "", 'B8 Sch 8 CCA Bridge'!C39) ->  | D40: B8 | E40: =IF(ISBLANK('B8 Sch 8 CCA Bridge'!W39), "", 'B8 Sch 8 CCA Bridge'!W39) -> 0 | L40: 0 | M40: 0 | N40: 0 | P40: 0 | Q40: 0 | R40: 0 | S40: 0 | T40: 0 | V40: 0 | W40: 0 | AA40: 0 | AB40: 0
B41: =IF(ISBLANK('B8 Sch 8 CCA Bridge'!B40), "", 'B8 Sch 8 CCA Bridge'!B40) ->  | C41: =IF(ISBLANK('B8 Sch 8 CCA Bridge'!C40), "", 'B8 Sch 8 CCA Bridge'!C40) ->  | D41: B8 | E41: =IF(ISBLANK('B8 Sch 8 CCA Bridge'!W40), "", 'B8 Sch 8 CCA Bridge'!W40) -> 0 | L41: 0 | M41: 0 | N41: 0 | P41: 0 | Q41: 0 | R41: 0 | S41: 0 | T41: 0 | V41: 0 | W41: 0 | AA41: 0 | AB41: 0
B42: =IF(ISBLANK('B8 Sch 8 CCA Bridge'!B41), "", 'B8 Sch 8 CCA Bridge'!B41) ->  | C42: =IF(ISBLANK('B8 Sch 8 CCA Bridge'!C41), "", 'B8 Sch 8 CCA Bridge'!C41) ->  | D42: B8 | E42: =IF(ISBLANK('B8 Sch 8 CCA Bridge'!W41), "", 'B8 Sch 8 CCA Bridge'!W41) -> 0 | L42: 0 | M42: 0 | N42: 0 | P42: 0 | Q42: 0 | R42: 0 | S42: 0 | T42: 0 | V42: 0 | W42: 0 | AA42: 0 | AB42: 0
B43: =IF(ISBLANK('B8 Sch 8 CCA Bridge'!B42), "", 'B8 Sch 8 CCA Bridge'!B42) ->  | C43: =IF(ISBLANK('B8 Sch 8 CCA Bridge'!C42), "", 'B8 Sch 8 CCA Bridge'!C42) ->  | D43: B8 | E43: =IF(ISBLANK('B8 Sch 8 CCA Bridge'!W42), "", 'B8 Sch 8 CCA Bridge'!W42) -> 0 | L43: 0 | M43: =IFERROR(E43+F43+H43-K43,"") -> 0 | N43: 0 | P43: 0 | Q43: 0 | R43: 0 | S43: 0 | T43: 0 | V43: 0 | W43: 0 | AA43: 0 | AB43: 0
C44: TOTALS | E44: =SUM(E10:E43) -> 5016647364 | F44: =SUM(F10:F43) -> 632309581 | G44: =SUM(G10:G43) -> 631157177 | H44: =SUM(H10:H43) -> 0 | I44: =SUM(I10:I43) -> 0 | J44: 0 | K44: =SUM(K10:K43) -> 0 | L44: =SUM(L10:L43) -> 0 | M44: 5648956945 | N44: 631157177 | O44: 0 | P44: 632309581 | Q44: 631157177 | R44: 5648956945 | S44: 0 | T44: 631157177 | V44: =SUM(V10:V43) -> 5599332 | W44: 576202 | Y44: =SUM(Y10:Y43) -> 0 | Z44: =SUM(Z10:Z43) -> 0 | AA44: =SUM(AA10:AA43) -> 424007898.4 | AB44: =SUM(AB10:AB43) -> 5224949047
B46: For additional details and guidance on calculating amounts in Schedule 8, refer to the notes to the Canada Revenue Agency published Schedule 8 - Capital Cost Allowance (CCA) (2018 and later tax years):
B47: https://www.canada.ca/content/dam/cra-arc/formspubs/pbg/t2sch8/t2sch8-19e.pdf

Sheet T13 Sch 13 Reserves Test
C7: Schedule 13 Tax Reserves - Test Year
C9: Continuity of Reserves
I10: Test Year Adjustments
C11: Description | D11: Working Paper Reference | E11: Bridge Year | F11: Eliminate Amounts Not Relevant for Test Year | G11: Adjusted Utility Balance | I11: Additions | J11: Disposals | K11: Balance for Test Year | M11: Change During the Year | N11: Disallowed Expenses
C13: Capital Gains Reserves ss.40(1) | D13: B13 | E13: ='B13 Sch 13 Reserves Bridge'!K13 -> 0 | G13: =SUM(E13:F13) -> 0 | K13: =G13+I13-J13 -> 0 | M13: =+K13-G13 -> 0
C14: Tax Reserves Not Deducted for accounting purposes
C15: Reserve for doubtful accounts ss. 20(1)(l) | D15: B13 | E15: ='B13 Sch 13 Reserves Bridge'!K15 -> 0 | G15: =SUM(E15:F15) -> 0 | K15: =G15+I15-J15 -> 0 | M15: =+K15-G15 -> 0
C16: Reserve for goods and services not delivered ss. 20(1)(m) | D16: B13 | E16: ='B13 Sch 13 Reserves Bridge'!K16 -> 0 | G16: 0 | K16: 0 | M16: 0
C17: Reserve for unpaid amounts ss. 20(1)(n) | D17: B13 | E17: ='B13 Sch 13 Reserves Bridge'!K17 -> 0 | G17: 0 | K17: 0 | M17: 0
C18: Debt & Share Issue Expenses ss. 20(1)(e) | D18: B13 | E18: ='B13 Sch 13 Reserves Bridge'!K18 -> 0 | G18: 0 | K18: 0 | M18: 0
C19: Other tax reserves | D19: B13 | E19: ='B13 Sch 13 Reserves Bridge'!K19 -> 0 | G19: 0 | K19: 0 | M19: 0
E20: ='B13 Sch 13 Reserves Bridge'!K20 -> 0 | G20: 0 | K20: 0 | M20: 0
E21: ='B13 Sch 13 Reserves Bridge'!K21 -> 0 | G21: 0 | K21: 0 | M21: 0
C22: Total | E22: =SUM(E15:E21) -> 0 | F22: 0 | G22: 0 | H22: T1 | I22: 0 | J22: 0 | K22: 0 | L22: T1 | M22: 0 | N22: =SUM(N15:N21) -> 0
E23: 0
C24: Financial Statement Reserves (not deductible for Tax Purposes)
C25: General Reserve for Inventory Obsolescence (non-specific) | D25: B13 | E25: ='B13 Sch 13 Reserves Bridge'!K25 -> 0 | G25: =SUM(E25:F25) -> 0 | K25: =G25+I25-J25 -> 0 | M25: =+K25-G25 -> 0
C26: General reserve for bad debts | D26: B13 | E26: ='B13 Sch 13 Reserves Bridge'!K26 -> 0 | G26: 0 | K26: 0 | M26: 0
C27: Accrued Employee Future Benefits: | D27: B13 | E27: ='B13 Sch 13 Reserves Bridge'!K27 -> 0 | G27: 0 | K27: 0 | M27: 0
C28: - Medical and Life Insurance | D28: B13 | E28: ='B13 Sch 13 Reserves Bridge'!K28 -> 0 | G28: 0 | K28: 0 | M28: 0
C29: -Short & Long-term Disability | D29: B13 | E29: ='B13 Sch 13 Reserves Bridge'!K29 -> 0 | G29: 0 | K29: 0 | M29: 0
C30: -Accmulated Sick Leave | D30: B13 | E30: ='B13 Sch 13 Reserves Bridge'!K30 -> 0 | G30: 0 | K30: 0 | M30: 0
C31: - Termination Cost | D31: B13 | E31: ='B13 Sch 13 Reserves Bridge'!K31 -> 3828263 | G31: 3828263 | J31: 1549863 | K31: 2278400 | M31: -1549863
C32: - Other Post-Employment Benefits | D32: B13 | E32: ='B13 Sch 13 Reserves Bridge'!K32 -> 232739000 | G32: 232739000 | I32: 1835264 | K32: 234574264 | M32: 1835264
C33: Provision for Environmental Costs | D33: B13 | E33: ='B13 Sch 13 Reserves Bridge'!K33 -> 0 | G33: 0 | K33: 0 | M33: 0
C34: Restructuring Costs | D34: B13 | E34: ='B13 Sch 13 Reserves Bridge'!K34 -> 0 | G34: 0 | K34: 0 | M34: 0
C35: Accrued Contingent Litigation Costs | D35: B13 | E35: ='B13 Sch 13 Reserves Bridge'!K35 -> 0 | G35: 0 | K35: 0 | M35: 0
C36: Accrued Self-Insurance Costs | D36: B13 | E36: ='B13 Sch 13 Reserves Bridge'!K36 -> 0 | G36: 0 | K36: 0 | M36: 0
C37: Other Contingent Liabilities | D37: B13 | E37: ='B13 Sch 13 Reserves Bridge'!K37 -> 0 | G37: 0 | K37: 0 | M37: 0
C38: Bonuses Accrued and Not Paid Within 180 Days of Year-End ss. 78(4) | D38: B13 | E38: ='B13 Sch 13 Reserves Bridge'!K38 -> 0 | G38: 0 | K38: 0 | M38: 0
C39: Unpaid Amounts to Related Person and Not Paid Within 3 Taxation Years ss. 78(1) | D39: B13 | E39: ='B13 Sch 13 Reserves Bridge'!K39 -> 0 | G39: 0 | K39: 0 | M39: 0
C40: Other | D40: B13 | E40: ='B13 Sch 13 Reserves Bridge'!K40 -> 0 | G40: 0 | K40: 0 | M40: 0
E41: ='B13 Sch 13 Reserves Bridge'!K41 -> 0 | G41: 0 | K41: 0 | M41: 0
E42: ='B13 Sch 13 Reserves Bridge'!K42 -> 0 | G42: 0 | K42: 0 | M42: 0
C43: Total | E43: =SUM(E25:E42) -> 236567263 | F43: 0 | G43: 236567263 | H43: T1 | I43: 1835264 | J43: 1549863 | K43: 236852664 | L43: T1 | M43: 285401 | N43: 0
E44: 0

Sheet 2026-2029 PILs,Tax Provision
C6: T2 S1 line # | D6: 2026 Test Year Taxable Income | E6: 2027 Test Year Taxable Income | F6: 2028 Test Year Taxable Income | G6: 2029 Test Year Taxable Income
B7: Net Income Before Taxes | D7: 235291868 | E7: 251397578 | F7: 268739692 | G7: 284849689
B9: Additions:
B10: Amortization of tangible assets 2-4 ADJUSTED ACCOUNTING DATA P489 | C10: 104 | D10: 299636599.6 | E10: 319928789.1 | F10: 342059946.7 | G10: 354470110.1
B11: Non-deductible club dues and fees | C11: 120 | D11: 340000 | E11: =+D11 -> 340000 | F11: =+D11 -> 340000 | G11: =+D11 -> 340000
B12: Non-deductible meals and entertainment expense | C12: 121 | D12: 27000 | E12: =+D12 -> 27000 | F12: =+D12 -> 27000 | G12: =+D12 -> 27000
B13: Reserves from financial statements- balance at end of year | C13: 126 | D13: 236852664 | E13: 236852664 | F13: 236852664 | G13: 236852664
B14: Other Post-Employment Benefits adjustment - change in balance with no Income Statement Impact | D14: 0 | E14: 0 | F14: 0 | G14: 0
B15: Financing fees deducted in books | C15: 216 | D15: 1377925 | E15: 1377925 | F15: 1377925 | G15: 1377925
B16: Capital Contributions Received (ITA 12(1)(x)) | D16: 111301200 | E16: 111301200 | F16: 111301200 | G16: 111301200
B17: Deferred Revenue (ITA 12(1)(a)) | D17: 3061822 | E17: 3061822 | F17: 3061822 | G17: 3061822
B18: Accretion expense | D18: 637 | E18: 637 | F18: 637 | G18: 637
B19: Interest expensed on capital leases | C19: 290 | D19: 1400 | E19: 1400 | F19: 1400 | G19: 1400
B20: Prior Year Investment Tax Credits received | D20: 2436000 | E20: 2436000 | F20: 2436000 | G20: 2436000
B21: Total Additions | D21: =SUM(D10:D20) -> 655035247.6 | E21: 675327437.1 | F21: 697458594.7 | G21: 709868758.1
B22: Deductions:
B23: Gain on disposal of assets per financial statements | C23: 401 | D23: 0 | E23: 0 | F23: 0 | G23: 0
B24: Capital cost allowance from Schedule 8 | C24: 403 | D24: =+'T8 Sch 8 CCA 2026 Test'!O45 -> 445383352 | E24: ='T8 Sch 8 CCA 2027 Test'!O46 -> 511037099.1 | F24: ='T8 Sch 8 CCA 2028 Test'!O47 -> 450080488.3 | G24: =+'T8 Sch 8 CCA 2029 Test'!O48 -> 502099537.9
B25: Reserves from financial statements - balance at beginning of year | C25: 414 | D25: 236567263 | E25: =+D25 -> 236567263 | F25: =+D25 -> 236567263 | G25: =+D25 -> 236567263
B26: Financing Fees for Tax ITA S.20(1)(e) and (e.1) | D26: 2484627 | E26: =+D26 -> 2484627 | F26: =+D26 -> 2484627 | G26: =+D26 -> 2484627
B27: ARO Payments - Deductible for Tax when Paid | D27: 37815 | E27: =+D27 -> 37815 | F27: =+D27 -> 37815 | G27: =+D27 -> 37815
B28: ITA 13(7.4) Election - Capital Contributions Received | D28: =+D16 -> 111301200 | E28: =+E16 -> 111301200 | F28: =+F16 -> 111301200 | G28: =+G16 -> 111301200
B29: Deferred Revenue - ITA 20(1)(m) reserve | D29: 3061822 | E29: =+D29 -> 3061822 | F29: =+D29 -> 3061822 | G29: =+D29 -> 3061822
B30: Land Lease payment capitalized for accounting | D30: 89423 | E30: 89423 | F30: 89423 | G30: 89423
B31: Other Post-Employment Benefits adjustment - change in balance with no Income Statement Impact | D31: 343509 | E31: 343509 | F31: 343509 | G31: 343509
B32: Other Post-Employment Benefits adjustment - current year capitalized portion with no Income Statement Impact | D32: 6478383.865 | E32: 6478383.865 | F32: 6478383.865 | G32: 6478383.865
B33: Lease inducement Book Amortization credit to income | D33: 0 | E33: 0 | F33: 0 | G33: 0
B34: Capital lease payments | C34: 391 | D34: 49478 | E34: 49478 | F34: 49478 | G34: 49478
B35: Total Deductions | D35: =SUM(D23:D34) -> 805796872.9 | E35: =SUM(E23:E34) -> 871450620 | F35: =SUM(F23:F34) -> 810494009.1 | G35: =SUM(G23:G34) -> 862513058.7
B37: NET INCOME FOR TAX PURPOSES | D37: =+D7+D21-D35 -> 84530242.69 | E37: =+E7+E21-E35 -> 55274395.07 | F37: =+F7+F21-F35 -> 155704277.6 | G37: =+G7+G21-G35 -> 132205388.4
B39: Charitable donations | C39: 311
B40: Taxable dividends received under section 112 or 113 | C40: 320
B41: Non-capital losses of preceding taxation years from Schedule 7-1 | C41: 331
B42: Net-capital losses of preceding taxation years (Please show calculation) | C42: 332
B43: Limited partnership losses of preceding taxation years from Schedule 4 | C43: 335
B45: REGULATORY TAXABLE INCOME | D45: =D37-SUM(D39:D44) -> 84530242.69 | E45: 55274395.07 | F45: 155704277.6 | G45: 132205388.4 | H45: A
B47: Total Ontario income taxes before small business deduction | C47: 0.115 | D47: =+D45*$C$47 -> 9720977.909 | E47: =+E45*$C$47 -> 6356555.433 | F47: 17905991.93 | G47: 15203619.67
B48: Ontario Small Business Deduction | D48: 0 | E48: 0 | F48: 0 | G48: 0
B49: Total Ontario income taxes | D49: =SUM(D47:D48) -> 9720977.909 | E49: 6356555.433 | F49: 17905991.93 | G49: 15203619.67
B50: Effective Ontario tax rate | D50: 0.115 | E50: 0.115 | F50: 0.115 | G50: 0.115 | H50: B
B51: Federal tax rate | D51: 0.15 | E51: 0.15 | F51: 0.15 | G51: 0.15 | H51: C
B52: Combined tax rate | D52: =SUM(D50:D51) -> 0.265 | E52: =SUM(E50:E51) -> 0.265 | F52: 0.265 | G52: 0.265 | H52: D = B + C
B54: Total Income taxes | D54: =+D52*D45 -> 22400514.31 | E54: 14647714.69 | F54: 41261633.57 | G54: 35034427.92 | H54: E = A * D
B55: Investment Tax credits | D55: 1503000 | E55: =+D55 -> 1503000 | F55: =+D55 -> 1503000 | G55: =+D55 -> 1503000 | H55: F
B56: Miscellaneous Tax credits | D56: 933000 | E56: =+D56 -> 933000 | F56: =+D56 -> 933000 | G56: =+D56 -> 933000 | H56: G
B57: Total tax credits | D57: =SUM(D55:D56) -> 2436000 | E57: 2436000 | F57: 2436000 | G57: 2436000 | H57: H = F + G
B58: Corporate PILs/Income Tax Provision for Test Year | D58: =+D54-D57 -> 19964514.31 | E58: =+E54-E57 -> 12211714.69 | F58: 38825633.57 | G58: 32598427.92 | H58: I = E - H
B60: Corporate PILs/Income Tax Provision Gross Up 1 | C60: =1-D52 -> 0.735 | D60: =+D58/C60-D58 -> 7198090.194 | E60: =+E58/C60-E58 -> 4402863.121 | F60: =+F58/C60-F58 -> 13998357.68 | G60: =+G58/C60-G58 -> 11753174.69 | H60: K = I/J-I
B62: Income Tax (grossed-up) before tax credits reclass to OM&A | D62: =+D58+D60 -> 27162604.51 | E62: =+E58+E60 -> 16614577.82 | F62: 52823991.25 | G62: 44351602.62 | H62: L = K + I
B63: Tax credits reclass to OM&A | D63: 2457000 | E63: =+D63 -> 2457000 | F63: =+D63 -> 2457000 | G63: =+D63 -> 2457000 | H63: M
B64: Tax credits reclass to OM&A - Gross Up | D64: =+D63/0.735*0.265 -> 885857.1429 | E64: 885857.1429 | F64: 885857.1429 | G64: 885857.1429 | H64: N
B65: Income Tax (grossed-up) after tax credits reclass to OM&A | D65: =SUM(D62:D64) -> 30505461.65 | E65: 19957434.96 | F65: 56166848.39 | G65: 47694459.76 | H65: O = L + M + N
B67: Note: 1. This is for the derivation of revenue requirement and should not be used for sufficiency/deficiency calculations.

Sheet T8 Sch 8 CCA 2026 Test
C7: Schedule 8 CCA - 2026
C10: Class | D10: Class Description | F10: 2026 Opening UCC Balance | G10: Additions (acquired before November 21, 2018) | H10: Additions (acquired after November 20, 2018) | I10: Total Additions | J10: Disposals (Negative) | K10: UCC Before 1/2 Yr Adjustment | L10: 1/2 Year Rule {1/2 Additions Less Disposals} | M10: Reduced UCC | N10: Rate % | O10: 2026 CCA (Accelerated CCA rule applied) | Q10: 2026 Ending UCC Balance
C11: 1 | D11: Distribution System - post 1987 | F11: =+'T8 Sch 8 CCA Test'!AB10 -> 883164223 | G11: =+I11-H11 -> 0 | H11: 29998337 | I11: 29998337 | K11: =MAX((SUM(F11+I11+J11)),0) -> 913162560 | L11: =IF((I11+J11)<=0, 0,(I11+J11)*0.5) -> 14999168.5 | M11: =+K11-L11 -> 898163391.5 | N11: 0.04 | O11: =IF(+M11<0,+M11,+M11*N11)+(H11/2*1*N11) -> 36526502.4 | Q11: =MAX(0,+K11-O11) -> 876636057.6
C12: =+'T8 Sch 8 CCA Test'!B11 -> 1b | D12: Non-residential Buildings Reg. 1100(1)(a.1) election | F12: =+'T8 Sch 8 CCA Test'!AB11 -> 0 | K12: =MAX((SUM(F12+I12+J12)),0) -> 0 | L12: =IF((I12+J12)<=0, 0,(I12+J12)*0.5) -> 0 | M12: 0 | N12: 0.06 | O12: 0 | Q12: =MAX(0,+K12-O12) -> 0
C13: 2 | D13: Distribution System - pre 1988 | F13: =+'T8 Sch 8 CCA Test'!AB12 -> 147399967.7 | K13: 147399967.7 | L13: 0 | M13: 147399967.7 | N13: 0.06 | O13: 8843998.064 | Q13: 138555969.7
C14: 8 | D14: General Office/Stores Equip | F14: =+'T8 Sch 8 CCA Test'!AB15 -> 19834137.84 | G14: =+I14-H14 -> 0 | H14: 5964035 | I14: 5964035 | K14: 25798172.84 | L14: 2982017.5 | M14: 22816155.34 | N14: 0.2 | O14: 5159634.568 | Q14: 20638538.27
C15: 10 | D15: Computer Hardware/ Vehicles | F15: =+'T8 Sch 8 CCA Test'!AB16 -> 11374575.24 | G15: 0 | H15: 6748904 | I15: 6748904 | K15: 18123479.24 | L15: 3374452 | M15: 14749027.24 | N15: 0.3 | O15: 5437043.772 | Q15: 12686435.47
C16: 10.1 | D16: Certain Automobiles | F16: =+'T8 Sch 8 CCA Test'!AB17 -> 16792.4 | K16: 16792.4 | L16: 0 | M16: 16792.4 | N16: 0.3 | O16: =IF(+M16<0,+M16,+M16*N16)+(H16/2*1*N16)+2 -> 5039.72 | Q16: 11752.68
C17: 12 | D17: Computer Software | F17: =+'T8 Sch 8 CCA Test'!AB18 -> 34759.5 | G17: 0 | H17: 27748806 | I17: 27748806 | K17: 27783565.5 | L17: 13874403 | M17: 13909162.5 | N17: 1 | O17: 27783565.5 | Q17: 0
C18: 13 1 | D18: Lease # 1 | F18: =+'T8 Sch 8 CCA Test'!AB19 -> 54504.11111 | K18: 54504.11111 | L18: 0 | M18: 54504.11111 | N18: NA | O18: 21208.88889 | Q18: 33295.22222
C19: 13 2 | D19: Lease #2 | F19: =+'T8 Sch 8 CCA Test'!AB20 -> 0 | K19: 0 | L19: 0 | M19: 0 | N19: NA | O19: 0 | Q19: 0
C20: 13 3 | D20: Lease # 3 | F20: =+'T8 Sch 8 CCA Test'!AB21 -> 3187.2 | K20: 3187.2 | L20: 0 | M20: 3187.2 | N20: NA | O20: 2124.8 | Q20: 1062.4
C21: 13 4 | D21: Lease # 4 | F21: =+'T8 Sch 8 CCA Test'!AB22 -> 5782.6 | K21: 5782.6 | L21: 0 | M21: 5782.6 | N21: NA | O21: 1927.4 | Q21: 3855.2
C22: 13 5 | D22: Lease # 5 | F22: =+'T8 Sch 8 CCA Test'!AB23 -> 6399.2 | K22: =MAX((SUM(F22+I22+J22)),0) -> 6399.2 | L22: 0 | M22: 6399.2 | N22: NA | O22: 1599.8 | Q22: 4799.4
C23: 13 6 | D23: Lease # 6 | F23: 0 | H23: 14570 | I23: 14570 | K23: =MAX((SUM(F23+I23+J23)),0) -> 14570 | L23: 7285 | M23: 7285 | N23: NA | O23: 2914 | Q23: 11656
C24: 14 | D24: =+'T8 Sch 8 CCA Test'!C24 -> Limited Period Patents, Franchises, Concessions or Licences | F24: =+'T8 Sch 8 CCA Test'!AB24 -> 0 | K24: 0 | L24: 0 | M24: 0 | N24: NA | O24: 0 | Q24: 0
C25: 17 | D25: Elec. Generation Equip. (Non-Bldng, acq'd post Feb 27/00); Roads, Lots, Storage | F25: =+'T8 Sch 8 CCA Test'!AB27 -> 17097927.5 | G25: 0 | H25: 0 | I25: 0 | K25: 17097927.5 | L25: 0 | M25: 17097927.5 | N25: 0.08 | O25: =IF(+M25<0,+M25,+M25*N25)+(H25/2*1*N25) -> 1367834.2 | Q25: 15730093.3
C26: 42 | D26: Fibre Optic Cable | F26: =+'T8 Sch 8 CCA Test'!AB28 -> 8098695.374 | H26: 221475 | I26: 221475 | K26: 8320170.374 | L26: 110737.5 | M26: 8209432.874 | N26: 0.12 | O26: 998420.4448 | Q26: 7321749.929
C27: 43.1 | D27: Certain Clean Energy/Energy-Efficient Generation Equipment | F27: =+'T8 Sch 8 CCA Test'!AB29 -> 356762.42 | K27: 356762.42 | L27: 0 | M27: 356762.42 | N27: 0.3 | O27: =IF(+M27<0,+M27,+F27*(N27))+(H27*1*(N27+0.25)) -> 107028.726 | Q27: 249733.694
C28: 43.2 | D28: Certain Clean Energy/Energy-Efficient Generation Equipment | F28: =+'T8 Sch 8 CCA Test'!AB30 -> 283769.125 | H28: 639872 | I28: 639872 | K28: 923641.125 | L28: 319936 | M28: 603705.125 | N28: 0.5 | O28: =+F28*N28+I28*0.55 -> 493814.1625 | Q28: 429826.9625
C29: 45 | D29: Computers & System Software (acq'd post Mar 22/04 and pre Mar 19/07) | F29: =+'T8 Sch 8 CCA Test'!AB31 -> 62.6175 | K29: 62.6175 | L29: 0 | M29: 62.6175 | N29: 0.45 | O29: 28.177875 | Q29: 34.439625
C30: 46 | D30: Data Network Infrastructure Equipment (acq'd post Mar 22/04) | F30: =+'T8 Sch 8 CCA Test'!AB32 -> 1676852.24 | H30: 83843 | I30: 83843 | K30: 1760695.24 | L30: 41921.5 | M30: 1718773.74 | N30: 0.3 | O30: 528208.572 | Q30: 1232486.668
C31: 47 | D31: Distribution System (acq'd post Feb 22/05) | F31: =+'T8 Sch 8 CCA Test'!AB33 -> 3471087106 | G31: 0 | H31: 574127994 | I31: 574127994 | K31: 4045215100 | L31: 287063997 | M31: 3758151103 | N31: 0.08 | O31: 323617208 | Q31: 3721597892
C32: 50 | D32: General Purpose Computer Hardware & Software (acq'd post Mar 18/07) | F32: =+'T8 Sch 8 CCA Test'!AB34 -> 16905071.52 | G32: 0 | H32: 24181031 | I32: 24181031 | K32: 41086102.52 | L32: 12090515.5 | M32: 28995587.02 | N32: 0.55 | O32: 22597356.39 | Q32: 18488746.14
C33: 52 | D33: Computer Hardware and system software | F33: 0 | K33: 0 | L33: 0 | M33: 0 | N33: 1 | O33: 0 | Q33: 0
C34: 95 | D34: CWIP | F34: =+'T8 Sch 8 CCA Test'!AB35 -> 468232562 | K34: 468232562 | L34: 0 | M34: 468232562 | N34: 0 | O34: 0 | Q34: 468232562
C35: 14.1 | D35: Eligible Capital Property (acq'd pre Jan 1, 2017) | F35: =+'T8 Sch 8 CCA Test'!AB25 -> 26927270.74 | K35: 26927270.74 | L35: 0 | M35: 26927270.74 | N35: 0.07 | O35: 1884908.952 | Q35: 25042361.79
C36: 14.1 | D36: Eligible Capital Property (acq'd post Jan 1, 2017) | F36: =+'T8 Sch 8 CCA Test'!AB26 -> 149661752.4 | G36: 0 | H36: 13270686 | I36: 13270686 | K36: 162932438.4 | L36: 6635343 | M36: 156297095.4 | N36: 0.05 | O36: 8146621.921 | Q36: 154785816.5
C37: 6 | D37: Fence | F37: =+'T8 Sch 8 CCA Test'!AB14 -> 1389461.85 | G37: 0 | K37: 1389461.85 | L37: 0 | M37: 1389461.85 | N37: 0.1 | O37: 138946.185 | Q37: 1250515.665
C38: 54 | D38: Zero-Emission Vehicles | F38: =+'T8 Sch 8 CCA Test'!AB36 -> 1337424.125 | H38: 2393073 | I38: 2393073 | K38: 3730497.125 | L38: 1196536.5 | M38: =+K38-L38 -> 2533960.625 | N38: 0.3 | O38: =IF(+M38<0,+M38,+F38*(N38))+(H38*1*(N38+0.25)) -> 1717417.388 | Q38: 2013079.737
F39: 0 | K39: 0 | L39: 0 | M39: =+K39-L39 -> 0 | N39: 0 | O39: 0 | Q39: 0
F40: 0 | K40: 0 | L40: 0 | M40: =+K40-L40 -> 0 | N40: 0 | O40: 0 | Q40: 0
F41: 0 | K41: 0 | L41: 0 | M41: 0 | N41: 0 | O41: 0 | Q41: 0
F42: 0 | K42: 0 | L42: 0 | M42: 0 | N42: 0 | O42: 0 | Q42: 0
F43: 0 | K43: 0 | L43: 0 | M43: 0 | N43: 0 | O43: 0 | Q43: 0
F44: 0 | K44: 0 | L44: 0 | M44: 0 | N44: 0 | O44: 0 | Q44: 0
D45: TOTAL | F45: =SUM(F11:F44) -> 5224949047 | G45: =SUM(G11:G44) -> 0 | H45: 685392626 | I45: 685392626 | J45: 0 | K45: 5910341673 | L45: 342696313 | M45: 5567645360 | O45: =SUM(O11:O44) -> 445383352 | Q45: =SUM(Q11:Q44) -> 5464958321

Sheet T8 Sch 8 CCA 2027 Test
C7: Schedule 8 CCA - 2027
C10: Class | D10: Class Description | F10: 2027 Opening UCC Balance | G10: Additions (acquired before November 21, 2018) | H10: Additions (acquired after November 20, 2018) | I10: Total Additions | J10: Disposals (Negative) | K10: UCC Before 1/2 Yr Adjustment | L10: 1/2 Year Rule {1/2 Additions Less Disposals} | M10: Reduced UCC | N10: Rate % | O10: 2027 CCA (Accelerated CCA rule applied) | Q10: 2027 Ending UCC Balance
C11: 1 | D11: Distribution System - post 1987 | F11: =+'T8 Sch 8 CCA 2026 Test'!Q11 -> 876636057.6 | G11: =+I11-H11 -> 0 | H11: 36703340 | I11: 36703340 | K11: =MAX((SUM(F11+I11+J11)),0) -> 913339397.6 | L11: =IF((I11+J11)<=0, 0,(I11+J11)*0.5) -> 18351670 | M11: =+K11-L11 -> 894987727.6 | N11: 0.04 | O11: =IF(+M11<0,+M11,+M11*N11)+(H11/2*1*N11) -> 36533575.9 | Q11: =MAX(0,+K11-O11) -> 876805821.7
C12: =+'T8 Sch 8 CCA Test'!B11 -> 1b | D12: Non-residential Buildings Reg. 1100(1)(a.1) election | F12: =+'T8 Sch 8 CCA 2026 Test'!Q12 -> 0 | K12: =MAX((SUM(F12+I12+J12)),0) -> 0 | L12: =IF((I12+J12)<=0, 0,(I12+J12)*0.5) -> 0 | M12: 0 | N12: 0.06 | O12: 0 | Q12: =MAX(0,+K12-O12) -> 0
C13: 2 | D13: Distribution System - pre 1988 | F13: =+'T8 Sch 8 CCA 2026 Test'!Q13 -> 138555969.7 | K13: 138555969.7 | L13: 0 | M13: 138555969.7 | N13: 0.06 | O13: 8313358.181 | Q13: 130242611.5
C14: 8 | D14: General Office/Stores Equip | F14: =+'T8 Sch 8 CCA 2026 Test'!Q14 -> 20638538.27 | G14: =+I14-H14 -> 0 | H14: 6447888 | I14: 6447888 | K14: 27086426.27 | L14: 3223944 | M14: 23862482.27 | N14: 0.2 | O14: 5417285.254 | Q14: 21669141.02
C15: 10 | D15: Computer Hardware/ Vehicles | F15: =+'T8 Sch 8 CCA 2026 Test'!Q15 -> 12686435.47 | G15: =+I15-H15 -> 0 | H15: 4851219 | I15: 4851219 | K15: 17537654.47 | L15: 2425609.5 | M15: 15112044.97 | N15: 0.3 | O15: 5261296.34 | Q15: 12276358.13
C16: 10.1 | D16: Certain Automobiles | F16: =+'T8 Sch 8 CCA 2026 Test'!Q16 -> 11752.68 | K16: 11752.68 | L16: 0 | M16: 11752.68 | N16: 0.3 | O16: =IF(+M16<0,+M16,+M16*N16)+(H16/2*1*N16) -> 3525.804 | Q16: 8226.876
C17: 12 | D17: Computer Software | F17: =+'T8 Sch 8 CCA 2026 Test'!Q17 -> 0 | G17: =+I17-H17 -> 0 | H17: 63343033 | I17: 63343033 | K17: 63343033 | L17: 31671516.5 | M17: 31671516.5 | N17: 1 | O17: 63343033 | Q17: 0
C18: 13 1 | D18: Lease # 1 | F18: =+'T8 Sch 8 CCA 2026 Test'!Q18 -> 33295.22222 | K18: 33295.22222 | L18: 0 | M18: 33295.22222 | N18: NA | O18: 21208.88889 | Q18: 12086.33333
C19: 13 2 | D19: Lease #2 | F19: =+'T8 Sch 8 CCA 2026 Test'!Q19 -> 0 | K19: 0 | L19: 0 | M19: 0 | N19: NA | O19: 0 | Q19: 0
C20: 13 3 | D20: Lease # 3 | F20: =+'T8 Sch 8 CCA 2026 Test'!Q20 -> 1062.4 | K20: 1062.4 | L20: 0 | M20: 1062.4 | N20: NA | O20: 1062.4 | Q20: 0
C21: 13 4 | D21: Lease # 4 | F21: =+'T8 Sch 8 CCA 2026 Test'!Q21 -> 3855.2 | K21: 3855.2 | L21: 0 | M21: 3855.2 | N21: NA | O21: 1927.4 | Q21: 1927.8
C22: 13 5 | D22: Lease # 5 | F22: =+'T8 Sch 8 CCA 2026 Test'!Q22 -> 4799.4 | K22: =MAX((SUM(F22+I22+J22)),0) -> 4799.4 | L22: 0 | M22: 4799.4 | N22: NA | O22: 1599.8 | Q22: 3199.6
C23: 13 6 | D23: Lease # 6 | F23: =+'T8 Sch 8 CCA 2026 Test'!Q23 -> 11656 | K23: 11656 | L23: 0 | M23: 11656 | N23: NA | O23: 2914 | Q23: 8742
C24: 13 7 | D24: Lease # 7 | F24: 0 | H24: 14611 | I24: 14611 | K24: =MAX((SUM(F24+I24+J24)),0) -> 14611 | L24: 7305.5 | M24: 7305.5 | N24: NA | O24: 2922.2 | Q24: 11688.8
C25: 14 | D25: Limited Period Patents, Franchises, Concessions or Licences | F25: =+'T8 Sch 8 CCA 2026 Test'!Q24 -> 0 | H25: 0 | I25: 0 | K25: 0 | L25: 0 | M25: 0 | N25: NA | O25: 0 | Q25: 0
C26: 17 | D26: Elec. Generation Equip. (Non-Bldng, acq'd post Feb 27/00); Roads, Lots, Storage | F26: =+'T8 Sch 8 CCA 2026 Test'!Q25 -> 15730093.3 | G26: =+I26-H26 -> 0 | H26: 0 | I26: 0 | K26: 15730093.3 | L26: 0 | M26: 15730093.3 | N26: 0.08 | O26: =IF(+M26<0,+M26,+M26*N26)+(H26/2*1*N26) -> 1258407.464 | Q26: 14471685.83
C27: 42 | D27: Fibre Optic Cable | F27: =+'T8 Sch 8 CCA 2026 Test'!Q26 -> 7321749.929 | H27: 101887 | I27: 101887 | K27: 7423636.929 | L27: 50943.5 | M27: 7372693.429 | N27: 0.12 | O27: 890836.4315 | Q27: 6532800.497
C28: 43.1 | D28: Certain Clean Energy/Energy-Efficient Generation Equipment | F28: =+'T8 Sch 8 CCA 2026 Test'!Q27 -> 249733.694 | H28: 884535 | I28: 884535 | K28: 1134268.694 | L28: 442267.5 | M28: 692001.194 | N28: 0.3 | O28: =+F28*N28+I28*0.55 -> 561414.3582 | Q28: 572854.3358
C29: 43.2 | D29: Certain Clean Energy/Energy-Efficient Generation Equipment | F29: =+'T8 Sch 8 CCA 2026 Test'!Q28 -> 429826.9625 | H29: 639983 | I29: 639983 | K29: 1069809.962 | L29: 319991.5 | M29: 749818.4625 | N29: 0.5 | O29: =+F29*N29+I29*0.55 -> 566904.1312 | Q29: 502905.8312
C30: 45 | D30: Computers & System Software (acq'd post Mar 22/04 and pre Mar 19/07) | F30: =+'T8 Sch 8 CCA 2026 Test'!Q29 -> 34.439625 | K30: 34.439625 | L30: 0 | M30: 34.439625 | N30: 0.45 | O30: 15.49783125 | Q30: 18.94179375
C31: 46 | D31: Data Network Infrastructure Equipment (acq'd post Mar 22/04) | F31: =+'T8 Sch 8 CCA 2026 Test'!Q30 -> 1232486.668 | H31: 43070 | I31: 43070 | K31: 1275556.668 | L31: 21535 | M31: 1254021.668 | N31: 0.3 | O31: =IF(+M31<0,+M31,+M31*N31)+(H31/2*1*N31) -> 382667.0004 | Q31: 892889.6676
C32: 47 | D32: Distribution System (acq'd post Feb 22/05) | F32: =+'T8 Sch 8 CCA 2026 Test'!Q31 -> 3721597892 | G32: =+I32-H32 -> 0 | H32: 612791494 | I32: 612791494 | K32: 4334389386 | L32: 306395747 | M32: 4027993639 | N32: 0.08 | O32: 346751150.9 | Q32: 3987638235
C33: 50 | D33: General Purpose Computer Hardware & Software (acq'd post Mar 18/07) | F33: =+'T8 Sch 8 CCA 2026 Test'!Q32 -> 18488746.14 | G33: 0 | H33: 35100660 | I33: 35100660 | K33: 53589406.14 | L33: 17550330 | M33: 36039076.14 | N33: 0.55 | O33: =IF(+M33<0,+M33,+M33*N33)+(H33/2*1*N33) -> 29474173.37 | Q33: 24115232.76
C34: 52 | D34: Computer Hardware and system software | F34: =+'T8 Sch 8 CCA 2026 Test'!Q33 -> 0 | K34: 0 | L34: 0 | M34: 0 | N34: 1 | O34: 0 | Q34: 0
C35: 95 | D35: CWIP | F35: =+'T8 Sch 8 CCA 2026 Test'!Q34 -> 468232562 | K35: 468232562 | L35: 0 | M35: 468232562 | N35: 0 | O35: 0 | Q35: 468232562
C36: 14.1 | D36: Eligible Capital Property (acq'd pre Jan 1, 2017) | F36: =+'T8 Sch 8 CCA 2026 Test'!Q35 -> 25042361.79 | K36: 25042361.79 | L36: 0 | M36: 25042361.79 | N36: 0.07 | O36: 1752965.325 | Q36: 23289396.46
C37: 14.1 | D37: Eligible Capital Property (acq'd post Jan 1, 2017) | F37: =+'T8 Sch 8 CCA 2026 Test'!Q36 -> 154785816.5 | G37: =+I37-H37 -> 0 | H37: 8995851 | I37: 8995851 | K37: 163781667.5 | L37: 4497925.5 | M37: 159283742 | N37: 0.05 | O37: 8189083.375 | Q37: 155592584.1
C38: 6 | D38: Fence | F38: =+'T8 Sch 8 CCA 2026 Test'!Q37 -> 1250515.665 | G38: 0 | K38: 1250515.665 | L38: 0 | M38: 1250515.665 | N38: 0.1 | O38: 125051.5665 | Q38: 1125464.099
C39: 54 | D39: Zero-Emission Vehicles | F39: =+'T8 Sch 8 CCA 2026 Test'!Q38 -> 2013079.737 | H39: 2866903 | I39: 2866903 | K39: 4879982.737 | L39: 1433451.5 | M39: =+K39-L39 -> 3446531.237 | N39: 0.3 | O39: =IF(+M39<0,+M39,+F39*(N39))+(H39*1*(N39+0.25)) -> 2180720.571 | Q39: 2699262.166
F40: =+'T8 Sch 8 CCA 2026 Test'!Q39 -> 0 | K40: 0 | L40: 0 | M40: =+K40-L40 -> 0 | N40: 0 | O40: 0 | Q40: 0
F41: =+'T8 Sch 8 CCA 2026 Test'!Q40 -> 0 | K41: 0 | L41: 0 | M41: =+K41-L41 -> 0 | N41: 0 | O41: 0 | Q41: 0
F42: =+'T8 Sch 8 CCA 2026 Test'!Q41 -> 0 | K42: 0 | L42: 0 | M42: 0 | N42: 0 | O42: 0 | Q42: 0
F43: =+'T8 Sch 8 CCA 2026 Test'!Q42 -> 0 | K43: 0 | L43: 0 | M43: 0 | N43: 0 | O43: 0 | Q43: 0
F44: =+'T8 Sch 8 CCA 2026 Test'!Q43 -> 0 | K44: 0 | L44: 0 | M44: 0 | N44: 0 | O44: 0 | Q44: 0
F45: =+'T8 Sch 8 CCA 2026 Test'!Q44 -> 0 | K45: 0 | L45: 0 | M45: 0 | N45: 0 | O45: 0 | Q45: 0
D46: TOTAL | F46: =SUM(F11:F45) -> 5464958321 | G46: =SUM(G11:G45) -> 0 | H46: 772784474 | I46: 772784474 | J46: 0 | K46: 6237742795 | L46: 386392237 | M46: 5851350558 | O46: =SUM(O11:O45) -> 511037099.1 | Q46: =SUM(Q11:Q45) -> 5726705696

Sheet T8 Sch 8 CCA 2028 Test
C7: Schedule 8 CCA - 2028
C10: Class | D10: Class Description | F10: 2028 Opening UCC Balance | G10: Additions (acquired before November 21, 2018) | H10: Additions (acquired after November 20, 2018) | I10: Total Additions | J10: Disposals (Negative) | K10: UCC Before 1/2 Yr Adjustment | L10: 1/2 Year Rule {1/2 Additions Less Disposals} | M10: Reduced UCC | N10: Rate % | O10: 2028 CCA (Accelerated CCA rule - NA) | Q10: 2028 Ending UCC Balance
C11: 1 | D11: Distribution System - post 1987 | F11: =+'T8 Sch 8 CCA 2027 Test'!Q11 -> 876805821.7 | G11: =+I11-H11 -> 0 | H11: 40680757 | I11: 40680757 | K11: =MAX((SUM(F11+I11+J11)),0) -> 917486578.7 | L11: =IF((I11+J11)<=0, 0,(I11+J11)*0.5) -> 20340378.5 | M11: =+K11-L11 -> 897146200.2 | N11: 0.04 | O11: =IF(+M11<0,+M11,+M11*N11) -> 35885848.01 | Q11: =MAX(0,+K11-O11) -> 881600730.7
C12: 1b | D12: Non-residential Buildings Reg. 1100(1)(a.1) election | F12: =+'T8 Sch 8 CCA 2027 Test'!Q12 -> 0 | K12: =MAX((SUM(F12+I12+J12)),0) -> 0 | L12: =IF((I12+J12)<=0, 0,(I12+J12)*0.5) -> 0 | M12: 0 | N12: 0.06 | O12: =IF(+M12<0,+M12,+M12*N12) -> 0 | Q12: =MAX(0,+K12-O12) -> 0
C13: 2 | D13: Distribution System - pre 1988 | F13: =+'T8 Sch 8 CCA 2027 Test'!Q13 -> 130242611.5 | K13: 130242611.5 | L13: 0 | M13: 130242611.5 | N13: 0.06 | O13: 7814556.69 | Q13: 122428054.8
C14: 8 | D14: General Office/Stores Equip | F14: =+'T8 Sch 8 CCA 2027 Test'!Q14 -> 21669141.02 | G14: =+I14-H14 -> 0 | H14: 7106184 | I14: 7106184 | K14: 28775325.02 | L14: 3553092 | M14: 25222233.02 | N14: 0.2 | O14: 5044446.604 | Q14: 23730878.41
C15: 10 | D15: Computer Hardware/ Vehicles | F15: =+'T8 Sch 8 CCA 2027 Test'!Q15+'T8 Sch 8 CCA 2027 Test'!Q39 -> 14975620.29 | G15: 0 | H15: =3636794+5750155 -> 9386949 | I15: =3636794+5750155 -> 9386949 | K15: 24362569.29 | L15: 4693474.5 | M15: 19669094.79 | N15: 0.3 | O15: 5900728.438 | Q15: 18461840.86
C16: 10.1 | D16: Certain Automobiles | F16: =+'T8 Sch 8 CCA 2027 Test'!Q16 -> 8226.876 | K16: 8226.876 | L16: 0 | M16: 8226.876 | N16: 0.3 | O16: 2468.0628 | Q16: 5758.8132
C17: 12 | D17: Computer Software | F17: =+'T8 Sch 8 CCA 2027 Test'!Q17 -> 0 | G17: =+I17-H17 -> 0 | H17: 34172020 | I17: 34172020 | K17: 34172020 | L17: 17086010 | M17: 17086010 | N17: 1 | O17: 17086010 | Q17: 17086010
C18: 13 1 | D18: Lease # 1 | F18: =+'T8 Sch 8 CCA 2027 Test'!Q18 -> 12086.33333 | K18: 12086.33333 | L18: 0 | M18: 12086.33333 | N18: NA | O18: 12086 | Q18: 0.3333333333
C19: 13 2 | D19: Lease #2 | F19: =+'T8 Sch 8 CCA 2027 Test'!Q19 -> 0 | K19: 0 | L19: 0 | M19: 0 | N19: NA | Q19: 0
C20: 13 3 | D20: Lease # 3 | F20: =+'T8 Sch 8 CCA 2027 Test'!Q20 -> 0 | K20: 0 | L20: 0 | M20: 0 | N20: NA | Q20: 0
C21: 13 4 | D21: Lease # 4 | F21: =+'T8 Sch 8 CCA 2027 Test'!Q21 -> 1927.8 | K21: 1927.8 | L21: 0 | M21: 1927.8 | N21: NA | O21: 1927.4 | Q21: 0.4
C22: 13 5 | D22: Lease # 5 | F22: =+'T8 Sch 8 CCA 2027 Test'!Q22 -> 3199.6 | K22: 3199.6 | N22: NA | O22: 1599.8 | Q22: 1599.8
C23: 13 6 | D23: Lease # 6 | F23: =+'T8 Sch 8 CCA 2027 Test'!Q23 -> 8742 | K23: 8742 | N23: NA | O23: 2914 | Q23: 5828
C24: 13 7 | D24: Lease # 7 | F24: =+'T8 Sch 8 CCA 2027 Test'!Q24 -> 11688.8 | K24: 11688.8 | N24: NA | O24: 2922.2 | Q24: 8766.6
C25: 13 8 | D25: Lease # 8 | F25: 0 | H25: 14302 | I25: 14302 | K25: =MAX((SUM(F25+I25+J25)),0) -> 14302 | L25: =IF((I25+J25)<=0, 0,(I25+J25)*0.5) -> 7151 | M25: =+K25-L25 -> 7151 | N25: NA | O25: 1430.2 | Q25: 12871.8
C26: 14 | D26: Limited Period Patents, Franchises, Concessions or Licences | F26: =+'T8 Sch 8 CCA 2027 Test'!Q25 -> 0 | K26: 0 | L26: 0 | M26: 0 | N26: NA | O26: 0 | Q26: 0
C27: 17 | D27: Elec. Generation Equip. (Non-Bldng, acq'd post Feb 27/00); Roads, Lots, Storage | F27: =+'T8 Sch 8 CCA 2027 Test'!Q26 -> 14471685.83 | G27: =+I27-H27 -> 0 | H27: 0 | I27: 0 | K27: 14471685.83 | L27: 0 | M27: 14471685.83 | N27: 0.08 | O27: 1157734.867 | Q27: 13313950.97
C28: 42 | D28: Fibre Optic Cable | F28: =+'T8 Sch 8 CCA 2027 Test'!Q27 -> 6532800.497 | H28: 52947 | I28: 52947 | K28: 6585747.497 | L28: 26473.5 | M28: 6559273.997 | N28: 0.12 | O28: 787112.8797 | Q28: 5798634.618
C29: 43.1 | D29: Certain Clean Energy/Energy-Efficient Generation Equipment | F29: =+'T8 Sch 8 CCA 2027 Test'!Q28 -> 572854.3358 | K29: 572854.3358 | L29: 0 | M29: 572854.3358 | N29: 0.3 | O29: 171856.3007 | Q29: 400998.0351
C30: 43.2 | D30: Certain Clean Energy/Energy-Efficient Generation Equipment | F30: =+'T8 Sch 8 CCA 2027 Test'!Q29 -> 502905.8312 | H30: 639138 | I30: 639138 | K30: 1142043.831 | L30: 319569 | M30: 822474.8312 | N30: 0.5 | O30: 411237.4156 | Q30: 730806.4156
C31: 45 | D31: Computers & System Software (acq'd post Mar 22/04 and pre Mar 19/07) | F31: =+'T8 Sch 8 CCA 2027 Test'!Q30 -> 18.94179375 | K31: 18.94179375 | L31: 0 | M31: 18.94179375 | N31: 0.45 | O31: 8.523807187 | Q31: 10.41798656
C32: 46 | D32: Data Network Infrastructure Equipment (acq'd post Mar 22/04) | F32: =+'T8 Sch 8 CCA 2027 Test'!Q31 -> 892889.6676 | H32: 26004 | I32: 26004 | K32: 918893.6676 | L32: 13002 | M32: 905891.6676 | N32: 0.3 | O32: 271767.5003 | Q32: 647126.1673
C33: 47 | D33: Distribution System (acq'd post Feb 22/05) | F33: =+'T8 Sch 8 CCA 2027 Test'!Q32 -> 3987638235 | G33: =+I33-H33 -> 0 | H33: 619342965 | I33: 619342965 | K33: 4606981200 | L33: 309671482.5 | M33: 4297309718 | N33: 0.08 | O33: 343784777.4 | Q33: 4263196423
C34: 50 | D34: General Purpose Computer Hardware & Software (acq'd post Mar 18/07) | F34: =+'T8 Sch 8 CCA 2027 Test'!Q33 -> 24115232.76 | G34: 0 | H34: 31593433 | I34: 31593433 | K34: 55708665.76 | L34: 15796716.5 | M34: 39911949.26 | N34: 0.55 | O34: 21951572.09 | Q34: 33757093.67
C35: 52 | D35: Computer Hardware and system software | F35: =+'T8 Sch 8 CCA 2027 Test'!Q34 -> 0 | K35: 0 | L35: 0 | M35: 0 | N35: 1 | O35: 0 | Q35: 0
C36: 95 | D36: CWIP | F36: =+'T8 Sch 8 CCA 2027 Test'!Q35 -> 468232562 | K36: 468232562 | L36: 0 | M36: 468232562 | N36: 0 | O36: 0 | Q36: 468232562
C37: 14.1 | D37: Eligible Capital Property (acq'd pre Jan 1, 2017) | F37: =+'T8 Sch 8 CCA 2027 Test'!Q36 -> 23289396.46 | K37: 23289396.46 | L37: 0 | M37: 23289396.46 | N37: 0.07 | O37: 1630257.752 | Q37: 21659138.71
C38: 14.1 | D38: Eligible Capital Property (acq'd post Jan 1, 2017) | F38: =+'T8 Sch 8 CCA 2027 Test'!Q37 -> 155592584.1 | G38: =+I38-H38 -> 0 | H38: 10602020 | I38: 10602020 | K38: 166194604.1 | L38: 5301010 | M38: 160893594.1 | N38: 0.05 | O38: 8044679.706 | Q38: 158149924.4
C39: 6 | D39: Fence | F39: =+'T8 Sch 8 CCA 2027 Test'!Q38 -> 1125464.099 | G39: 0 | K39: 1125464.099 | L39: 0 | M39: 1125464.099 | N39: 0.1 | O39: 112546.4099 | Q39: 1012917.689
C40: 54 | D40: Zero-Emission Vehicles (in Class 10 after 2027) | F40: 0 | K40: 0 | L40: 0 | M40: =+K40-L40 -> 0 | N40: 0.3 | O40: 0 | Q40: 0
F41: =+'T8 Sch 8 CCA 2027 Test'!Q40 -> 0 | K41: 0 | L41: 0 | M41: =+K41-L41 -> 0 | N41: 0 | O41: 0 | Q41: 0
F42: =+'T8 Sch 8 CCA 2027 Test'!Q41 -> 0 | K42: 0 | L42: 0 | M42: =+K42-L42 -> 0 | N42: 0 | O42: 0 | Q42: 0
F43: =+'T8 Sch 8 CCA 2027 Test'!Q42 -> 0 | K43: 0 | L43: 0 | M43: 0 | N43: 0 | O43: 0 | Q43: 0
F44: =+'T8 Sch 8 CCA 2027 Test'!Q43 -> 0 | K44: 0 | L44: 0 | M44: 0 | N44: 0 | O44: 0 | Q44: 0
F45: =+'T8 Sch 8 CCA 2027 Test'!Q44 -> 0 | K45: 0 | L45: 0 | M45: 0 | N45: 0 | O45: 0 | Q45: 0
F46: =+'T8 Sch 8 CCA 2027 Test'!Q45 -> 0 | K46: 0 | L46: 0 | M46: 0 | N46: 0 | O46: 0 | Q46: 0
D47: TOTAL | F47: =SUM(F11:F46) -> 5726705696 | G47: =SUM(G11:G46) -> 0 | H47: 753616719 | I47: 753616719 | J47: 0 | K47: 6480322415 | L47: 376808359.5 | M47: 6103490425 | O47: =SUM(O11:O46) -> 450080488.3 | Q47: =SUM(Q11:Q46) -> 6030241926
D49: 1. Adjusted Class 10 opening UCC
D50: 2027 ending UCC Class 10 | F50: =+'T8 Sch 8 CCA 2027 Test'!Q15 -> 12276358.13
D51: 2027 ending UCC Class 54 | F51: =+'T8 Sch 8 CCA 2027 Test'!Q39 -> 2699262.166
F52: =SUM(F50:F51) -> 14975620.29

Sheet T8 Sch 8 CCA 2029 Test
C7: Schedule 8 CCA - 2029
C10: Class | D10: Class Description | F10: 2029 Opening UCC Balance | G10: Additions (acquired before November 21, 2018) | H10: Additions (acquired after November 20, 2018) | I10: Total Additions | J10: Disposals (Negative) | K10: UCC Before 1/2 Yr Adjustment | L10: 1/2 Year Rule {1/2 Additions Less Disposals} | M10: Reduced UCC | N10: Rate % | O10: 2029 CCA (Accelerated CCA rule - NA) | Q10: 2029 Ending UCC Balance
C11: 1 | D11: Distribution System - post 1987 | F11: =+'T8 Sch 8 CCA 2028 Test'!Q11 -> 881600730.7 | G11: =+I11-H11 -> 0 | H11: 57840439 | I11: 57840439 | K11: =MAX((SUM(F11+I11+J11)),0) -> 939441169.7 | L11: =IF((I11+J11)<=0, 0,(I11+J11)*0.5) -> 28920219.5 | M11: =+K11-L11 -> 910520950.2 | N11: 0.04 | O11: =IF(+M11<0,+M11,+M11*N11) -> 36420838.01 | Q11: =MAX(0,+K11-O11) -> 903020331.6
C12: 1b | D12: Non-residential Buildings Reg. 1100(1)(a.1) election | F12: =+'T8 Sch 8 CCA 2028 Test'!Q12 -> 0 | K12: =MAX((SUM(F12+I12+J12)),0) -> 0 | L12: =IF((I12+J12)<=0, 0,(I12+J12)*0.5) -> 0 | M12: 0 | N12: 0.06 | O12: =IF(+M12<0,+M12,+M12*N12) -> 0 | Q12: =MAX(0,+K12-O12) -> 0
C13: 2 | D13: Distribution System - pre 1988 | F13: =+'T8 Sch 8 CCA 2028 Test'!Q13 -> 122428054.8 | K13: 122428054.8 | L13: 0 | M13: 122428054.8 | N13: 0.06 | O13: 7345683.288 | Q13: 115082371.5
C14: 8 | D14: General Office/Stores Equip | F14: =+'T8 Sch 8 CCA 2028 Test'!Q14 -> 23730878.41 | G14: =+I14-H14 -> 0 | H14: 9720548 | I14: 9720548 | K14: 33451426.41 | L14: 4860274 | M14: 28591152.41 | N14: 0.2 | O14: 5718230.483 | Q14: 27733195.93
C15: 10 | D15: Computer Hardware/ Vehicles | F15: =+'T8 Sch 8 CCA 2028 Test'!Q15 -> 18461840.86 | G15: =+I15-H15 -> 0 | H15: =6364275+3887769 -> 10252044 | I15: =6364275+3887769 -> 10252044 | K15: 28713884.86 | L15: 5126022 | M15: 23587862.86 | N15: 0.3 | O15: =IF(+M15<0,+M15,+M15*N15) -> 7076358.857 | Q15: 21637526
C16: 10.1 | D16: Certain Automobiles | F16: =+'T8 Sch 8 CCA 2028 Test'!Q16 -> 5758.8132 | K16: 5758.8132 | L16: 0 | M16: 5758.8132 | N16: 0.3 | O16: 1727.64396 | Q16: 4031.16924
C17: 12 | D17: Computer Software | F17: =+'T8 Sch 8 CCA 2028 Test'!Q17 -> 17086010 | G17: =+I17-H17 -> 0 | H17: 35700949 | I17: 35700949 | K17: 52786959 | L17: 17850474.5 | M17: 34936484.5 | N17: 1 | O17: 34936484.5 | Q17: 17850474.5
C18: 13 1 | D18: Lease # 1 | F18: =+'T8 Sch 8 CCA 2028 Test'!Q18 -> 0.3333333333 | H18: 0 | K18: 0.3333333333 | L18: 0 | M18: 0.3333333333 | N18: NA | O18: 0 | Q18: 0.3333333333
C19: 13 2 | D19: Lease #2 | F19: =+'T8 Sch 8 CCA 2028 Test'!Q19 -> 0 | K19: 0 | L19: 0 | M19: 0 | N19: NA | O19: 0 | Q19: 0
C20: 13 3 | D20: Lease # 3 | F20: =+'T8 Sch 8 CCA 2028 Test'!Q20 -> 0 | K20: 0 | L20: 0 | M20: 0 | N20: NA | O20: 0 | Q20: 0
C21: 13 4 | D21: Lease # 4 | F21: =+'T8 Sch 8 CCA 2028 Test'!Q21 -> 0.4 | K21: 0.4 | L21: 0 | M21: 0.4 | N21: NA | O21: 0 | Q21: 0.4
C22: 13 5 | D22: Lease # 5 | F22: =+'T8 Sch 8 CCA 2028 Test'!Q22 -> 1599.8 | K22: 1599.8 | L22: 0 | M22: 1599.8 | N22: NA | O22: 1599.8 | Q22: 0
C23: 13 6 | D23: Lease # 6 | F23: =+'T8 Sch 8 CCA 2028 Test'!Q23 -> 5828 | K23: 5828 | L23: 0 | M23: 5828 | N23: NA | O23: 2914 | Q23: 2914
C24: 13 7 | D24: Lease # 7 | F24: =+'T8 Sch 8 CCA 2028 Test'!Q24 -> 8766.6 | K24: 8766.6 | L24: 0 | M24: 8766.6 | N24: NA | O24: 2922.2 | Q24: 5844.4
C25: 13 8 | D25: Lease # 8 | F25: =+'T8 Sch 8 CCA 2028 Test'!Q25 -> 12871.8 | K25: 12871.8 | L25: 0 | M25: 12871.8 | N25: NA | O25: 2860.4 | Q25: 10011.4
C26: 13 9 | D26: Lease # 9 | F26: 0 | H26: 19330 | I26: 19330 | K26: 19330 | L26: 9665 | M26: 9665 | N26: NA | O26: 1933 | Q26: 17397
C27: 14 | D27: Limited Period Patents, Franchises, Concessions or Licences | F27: =+'T8 Sch 8 CCA 2028 Test'!Q26 -> 0 | K27: 0 | L27: 0 | M27: 0 | N27: NA | O27: 0 | Q27: 0
C28: 17 | D28: Elec. Generation Equip. (Non-Bldng, acq'd post Feb 27/00); Roads, Lots, Storage | F28: =+'T8 Sch 8 CCA 2028 Test'!Q27 -> 13313950.97 | G28: =+I28-H28 -> 0 | K28: 13313950.97 | L28: 0 | M28: 13313950.97 | N28: 0.08 | O28: 1065116.077 | Q28: 12248834.89
C29: 42 | D29: Fibre Optic Cable | F29: =+'T8 Sch 8 CCA 2028 Test'!Q28 -> 5798634.618 | H29: 478334 | I29: 478334 | K29: 6276968.618 | L29: 239167 | M29: 6037801.618 | N29: 0.12 | O29: 724536.1941 | Q29: 5552432.424
C30: 43.1 | D30: Certain Clean Energy/Energy-Efficient Generation Equipment | F30: =+'T8 Sch 8 CCA 2028 Test'!Q29 -> 400998.0351 | H30: 468356 | I30: 468356 | K30: 869354.0351 | L30: 234178 | M30: 635176.0351 | N30: 0.3 | O30: 190552.8105 | Q30: 678801.2245
C31: 43.2 | D31: Certain Clean Energy/Energy-Efficient Generation Equipment | F31: =+'T8 Sch 8 CCA 2028 Test'!Q30 -> 730806.4156 | H31: 652897 | I31: 652897 | K31: 1383703.416 | L31: 326448.5 | M31: 1057254.916 | N31: 0.5 | O31: 528627.4578 | Q31: 855075.9578
C32: 45 | D32: Computers & System Software (acq'd post Mar 22/04 and pre Mar 19/07) | F32: =+'T8 Sch 8 CCA 2028 Test'!Q31 -> 10.41798656 | H32: 0 | K32: 10.41798656 | L32: 0 | M32: 10.41798656 | N32: 0.45 | O32: 4.688093953 | Q32: 5.729892609
C33: 46 | D33: Data Network Infrastructure Equipment (acq'd post Mar 22/04) | F33: =+'T8 Sch 8 CCA 2028 Test'!Q32 -> 647126.1673 | H33: 176265 | I33: 176265 | K33: 823391.1673 | L33: 88132.5 | M33: 735258.6673 | N33: 0.3 | O33: 220577.6002 | Q33: 602813.5671
C34: 47 | D34: Distribution System (acq'd post Feb 22/05) | F34: =+'T8 Sch 8 CCA 2028 Test'!Q33 -> 4263196423 | G34: =+I34-H34 -> 0 | H34: 634631786 | I34: 634631786 | K34: 4897828209 | L34: 317315893 | M34: 4580512316 | N34: 0.08 | O34: 366440985.3 | Q34: 4531387223
C35: 50 | D35: General Purpose Computer Hardware & Software (acq'd post Mar 18/07) | F35: =+'T8 Sch 8 CCA 2028 Test'!Q34 -> 33757093.67 | G35: 0 | H35: 42978483 | I35: 42978483 | K35: 76735576.67 | L35: 21489241.5 | M35: 55246335.17 | N35: 0.55 | O35: 30385484.34 | Q35: 46350092.33
C36: 52 | D36: Computer Hardware and system software | F36: =+'T8 Sch 8 CCA 2028 Test'!Q35 -> 0 | K36: 0 | L36: 0 | M36: 0 | N36: 1 | O36: 0 | Q36: 0
C37: 95 | D37: CWIP | F37: =+'T8 Sch 8 CCA 2028 Test'!Q36 -> 468232562 | K37: 468232562 | L37: 0 | M37: 468232562 | N37: 0 | O37: 0 | Q37: 468232562
C38: 14.1 | D38: Eligible Capital Property (acq'd pre Jan 1, 2017) | F38: =+'T8 Sch 8 CCA 2028 Test'!Q37 -> 21659138.71 | K38: 21659138.71 | L38: 0 | M38: 21659138.71 | N38: 0.07 | O38: 1516139.71 | Q38: 20142999
C39: 14.1 | D39: Eligible Capital Property (acq'd post Jan 1, 2017) | F39: =+'T8 Sch 8 CCA 2028 Test'!Q38 -> 158149924.4 | G39: =+I39-H39 -> 0 | H39: 60286942 | I39: 60286942 | K39: 218436866.4 | L39: 30143471 | M39: 188293395.4 | N39: 0.05 | O39: 9414669.771 | Q39: 209022196.6
C40: 6 | D40: Fence | F40: =+'T8 Sch 8 CCA 2028 Test'!Q39 -> 1012917.689 | G40: 0 | K40: 1012917.689 | L40: 0 | M40: 1012917.689 | N40: 0.1 | O40: 101291.7689 | Q40: 911625.9198
C41: 54 | D41: Zero-Emission Vehicles (in Class 10 after 2027) | F41: =+'T8 Sch 8 CCA 2028 Test'!Q40 -> 0 | K41: 0 | L41: 0 | M41: =+K41-L41 -> 0 | N41: 0.3 | O41: 0 | Q41: 0
F42: =+'T8 Sch 8 CCA 2028 Test'!Q41 -> 0 | K42: 0 | L42: 0 | M42: =+K42-L42 -> 0 | N42: 0 | O42: 0 | Q42: 0
F43: =+'T8 Sch 8 CCA 2028 Test'!Q42 -> 0 | K43: 0 | L43: 0 | M43: =+K43-L43 -> 0 | N43: 0 | O43: 0 | Q43: 0
F44: =+'T8 Sch 8 CCA 2028 Test'!Q43 -> 0 | K44: 0 | L44: 0 | M44: 0 | N44: 0 | O44: 0 | Q44: 0
F45: =+'T8 Sch 8 CCA 2028 Test'!Q44 -> 0 | K45: 0 | L45: 0 | M45: 0 | N45: 0 | O45: 0 | Q45: 0
F46: =+'T8 Sch 8 CCA 2028 Test'!Q45 -> 0 | K46: 0 | L46: 0 | M46: 0 | N46: 0 | O46: 0 | Q46: 0
F47: =+'T8 Sch 8 CCA 2028 Test'!Q46 -> 0 | K47: 0 | L47: 0 | M47: 0 | N47: 0 | O47: 0 | Q47: 0
D48: TOTAL | F48: =SUM(F11:F47) -> 6030241926 | G48: =SUM(G11:G47) -> 0 | H48: 853206373 | I48: =SUM(I11:I47) -> 853206373 | J48: =SUM(J11:J47) -> 0 | K48: =SUM(K11:K47) -> 6883448299 | L48: =SUM(L11:L47) -> 426603186.5 | M48: =SUM(M11:M47) -> 6456845113 | O48: =SUM(O11:O47) -> 502099537.9 | Q48: =SUM(Q11:Q47) -> 6381348761
